Workbook

Sheet Cover
M2: Example and Worksheet Checklist
G3: Statistical Measurement Methods in Excel: Intermediate
N6: Controlled Experiments
N7: Estimating Distributions
N8: Univariate Regression
N9: Multivariate Regression
N10: Log Odds Ratio
F13: Hubbard Decision Research
F14: 2S410 Canterbury Ct
F15: Glen Ellyn, IL 60137
F16: www.hubbardresearch.com

Sheet Reference Slides
A1: Reference Slides
C2: Regression Shortcuts | T2: Types of Functions to Try

Sheet Data
A1: Data for the Worksheets and Quiz
A2: Instructions: This page contains data that is on the designated worksheets so the user can use them to see the original results or reset the worksheets after using them.
B5: Multivariate Regression Data | K5: Log Odds Ratio Data
B6: Months / Years | C6: BLS Unemployment Report in percent | D6: Google Trends: Unemployment | E6: Google Trends: Work | F6: Google Trends: Jobs | G6: Google Trends: Labor | H6: Google Trends: Employment | I6: Google Trends: Job Openings | K6: Time Period for Estimates (years): | M6: 5 | N6: Initial Probability of Event per Time Period: P(E) | P6: 0.1
B7: 2004-01-03 | C7: 5.7 | D7: 5 | E7: 47 | F7: 56 | G7: 45 | H7: 100 | I7: 80
B8: 2004-02-02T12:00:00 | C8: 5.6 | D8: 5 | E8: 48 | F8: 52 | G8: 49 | H8: 87 | I8: 66
B9: 2004-03-04 | C9: 5.8 | D9: 5 | E9: 48 | F9: 52 | G9: 48 | H9: 91 | I9: 65 | L9: Conditions
B10: 2004-04-03T12:00:00 | C10: 5.6 | D10: 4 | E10: 49 | F10: 53 | G10: 50 | H10: 93 | I10: 71 | L10: Web | M10: Platform | N10: Pen Results | O10: Server/ Vendor | P10: Age | Q10: Users | R10: Data
B11: 2004-05-04 | C11: 5.6 | D11: 4 | E11: 48 | F11: 55 | G11: 47 | H11: 94 | I11: 83 | K11: X1 | L11: Web | M11: MS | N11: Pos Pen | O11: Internal | P11: <1 Year | Q11: Less than 5 | R11: PHI, PII, PCI, $
B12: 2004-06-03T12:00:00 | C12: 5.6 | D12: 4 | E12: 45 | F12: 57 | G12: 47 | H12: 99 | I12: 79 | K12: X2 | L12: No Web | M12: Not MS | N12: Neg Pen | O12: External US | P12: 1 to 5 Years | Q12: 5 to 200 | R12: Critical IP
B13: 2004-07-04 | C13: 5.5 | D13: 4 | E13: 43 | F13: 56 | G13: 51 | H13: 100 | I13: 75 | K13: X3 | O13: Foreign | P13: 5+ Years | Q13: 200 to 2000 | R13: No Critical Data
B14: 2004-08-03T12:00:00 | C14: 5.4 | D14: 4 | E14: 43 | F14: 54 | G14: 66 | H14: 96 | I14: 74 | K14: X4 | Q14: Over 2000
B15: 2004-09-03 | C15: 5.4 | D15: 4 | E15: 46 | F15: 50 | G15: 60 | H15: 85 | I15: 66
B16: 2004-10-03T12:00:00 | C16: 5.5 | D16: 4 | E16: 48 | F16: 48 | G16: 45 | H16: 82 | I16: 69 | K16: P(E|X1) | L16: 0.15 | M16: 0.2 | N16: 0.3 | O16: 0.07 | P16: 0.15 | Q16: 0.05 | R16: 0.32
B17: 2004-11-03 | C17: 5.4 | D17: 4 | E17: 49 | F17: 46 | G17: 45 | H17: 77 | I17: 68 | K17: P(E|X2) | L17: 0.05 | M17: 0.09 | N17: 0.05 | O17: 0.09 | P17: 0.1 | Q17: 0.08 | R17: 0.12
B18: 2004-12-03T12:00:00 | C18: 5.4 | D18: 4 | E18: 44 | F18: 42 | G18: 40 | H18: 68 | I18: 59 | K18: P(E|X3) | O18: 0.13 | P18: 0.05 | Q18: 0.15 | R18: 0.02
B19: 2005-01-03 | C19: 5.3 | D19: 5 | E19: 49 | F19: 53 | G19: 43 | H19: 88 | I19: 75 | K19: P(E|X4) | Q19: 0.36
B20: 2005-02-02T12:00:00 | C20: 5.4 | D20: 4 | E20: 50 | F20: 50 | G20: 46 | H20: 77 | I20: 65
B21: 2005-03-05 | C21: 5.2 | D21: 4 | E21: 49 | F21: 49 | G21: 45 | H21: 83 | I21: 76 | K21: P(X1) | L21: 0.5 | M21: 0.09 | N21: 0.2 | O21: 0.4 | P21: 0.333 | Q21: 0.15 | R21: 0.15
B22: 2005-04-04T12:00:00 | C22: 5.2 | D22: 4 | E22: 49 | F22: 49 | G22: 48 | H22: 81 | I22: 71 | K22: P(X2) | L22: 0.5 | M22: 0.91 | N22: 0.8 | O22: 0.3 | P22: 0.333 | Q22: 0.18 | R22: 0.35
B23: 2005-05-05 | C23: 5.1 | D23: 4 | E23: 47 | F23: 51 | G23: 44 | H23: 81 | I23: 78 | K23: P(X3) | O23: 0.3 | P23: 0.333 | Q23: 0.42 | R23: 0.5
B24: 2005-06-04T12:00:00 | C24: 5 | D24: 4 | E24: 44 | F24: 55 | G24: 44 | H24: 85 | I24: 74 | K24: P(X4) | Q24: 0.25
B25: 2005-07-05 | C25: 5 | D25: 4 | E25: 42 | F25: 51 | G25: 47 | H25: 83 | I25: 77
B26: 2005-08-04T12:00:00 | C26: 4.9 | D26: 4 | E26: 43 | F26: 51 | G26: 61 | H26: 83 | I26: 71
B27: 2005-09-04 | C27: 5 | D27: 4 | E27: 46 | F27: 50 | G27: 57 | H27: 77 | I27: 67
B28: 2005-10-04T12:00:00 | C28: 5 | D28: 4 | E28: 47 | F28: 45 | G28: 42 | H28: 71 | I28: 61
B29: 2005-11-04 | C29: 5 | D29: 4 | E29: 47 | F29: 43 | G29: 41 | H29: 66 | I29: 58 | K29: Data for the Review Quiz
B30: 2005-12-04T12:00:00 | C30: 4.9 | D30: 4 | E30: 44 | F30: 39 | G30: 38 | H30: 59 | I30: 54 | K30: Data for Q1 | N30: Data for Q2
B31: 2006-01-04 | C31: 4.7 | D31: 5 | E31: 47 | F31: 51 | G31: 43 | H31: 75 | I31: 73 | K31: 0.0492 | L31: 0.0443 | N31: 0.0492 | O31: 0.0443
B32: 2006-02-03T12:00:00 | C32: 4.8 | D32: 4 | E32: 47 | F32: 45 | G32: 41 | H32: 69 | I32: 67 | K32: -0.016 | L32: 0.0045 | N32: -0.016 | O32: 0.0045
B33: 2006-03-06 | C33: 4.7 | D33: 4 | E33: 46 | F33: 46 | G33: 42 | H33: 72 | I33: 68 | K33: 0.0381 | L33: 0.0866 | N33: 0.0381 | O33: 0.0866
B34: 2006-04-05T12:00:00 | C34: 4.7 | D34: 4 | E34: 48 | F34: 47 | G34: 43 | H34: 69 | I34: 69 | K34: 0.0459 | L34: 0.0907 | N34: 0.0459 | O34: 0.0907
B35: 2006-05-06 | C35: 4.6 | D35: 4 | E35: 47 | F35: 51 | G35: 42 | H35: 73 | I35: 81 | K35: 0.0549 | L35: 0.0316 | N35: 0.0549 | O35: 0.0316
B36: 2006-06-05T12:00:00 | C36: 4.6 | D36: 4 | E36: 44 | F36: 51 | G36: 41 | H36: 75 | I36: 74 | K36: 0.0731 | L36: 0.0232 | N36: 0.0731 | O36: 0.0232
B37: 2006-07-06 | C37: 4.7 | D37: 4 | E37: 42 | F37: 50 | G37: 44 | H37: 74 | I37: 70 | K37: 0.0595 | L37: 0.0451 | N37: 0.0595 | O37: 0.0451
B38: 2006-08-05T12:00:00 | C38: 4.7 | D38: 4 | E38: 43 | F38: 51 | G38: 61 | H38: 75 | I38: 71 | K38: 0.0827 | L38: 0.0612 | N38: 0.0827 | O38: 0.0612
B39: 2006-09-05 | C39: 4.5 | D39: 4 | E39: 45 | F39: 47 | G39: 53 | H39: 69 | I39: 69 | K39: 0.0775 | L39: 0.0975 | N39: 0.0775 | O39: 0.0975
B40: 2006-10-05T12:00:00 | C40: 4.4 | D40: 4 | E40: 46 | F40: 45 | G40: 39 | H40: 66 | I40: 63 | K40: 0.0475 | L40: 0.1714 | N40: 0.0475 | O40: 0.1714
B41: 2006-11-05 | C41: 4.5 | D41: 4 | E41: 44 | F41: 43 | G41: 36 | H41: 59 | I41: 57 | K41: 0.0598 | L41: 0.0974 | N41: 0.0598 | O41: 0.0974
B42: 2006-12-05T12:00:00 | C42: 4.4 | D42: 4 | E42: 43 | F42: 39 | G42: 34 | H42: 53 | I42: 55 | K42: 0.0433 | L42: 0.0011 | N42: 0.0433 | O42: 0.0011
B43: 2007-01-05 | C43: 4.6 | D43: 5 | E43: 48 | F43: 53 | G43: 40 | H43: 72 | I43: 73 | K43: 0.0657 | L43: 0.1205 | N43: 0.0657 | O43: 0.1205
B44: 2007-02-04T12:00:00 | C44: 4.5 | D44: 4 | E44: 48 | F44: 47 | G44: 39 | H44: 63 | I44: 64 | K44: 0.0477 | L44: 0.0211 | N44: 0.0477 | O44: 0.0211
B45: 2007-03-07 | C45: 4.4 | D45: 4 | E45: 47 | F45: 48 | G45: 39 | H45: 65 | I45: 69 | K45: 0.0155 | L45: 0.0236 | N45: 0.0155 | O45: 0.0236
B46: 2007-04-06T12:00:00 | C46: 4.5 | D46: 4 | E46: 50 | F46: 49 | G46: 39 | H46: 68 | I46: 73 | K46: 0.0528 | L46: 0.098 | N46: 0.0528 | O46: 0.098
B47: 2007-05-07 | C47: 4.4 | D47: 4 | E47: 50 | F47: 52 | G47: 41 | H47: 69 | I47: 77 | K47: 0.0443 | L47: 0.0211 | N47: 0.0443 | O47: 0.0211
B48: 2007-06-06T12:00:00 | C48: 4.6 | D48: 4 | E48: 47 | F48: 54 | G48: 41 | H48: 72 | I48: 75 | K48: 0.0296 | L48: 0.0681 | N48: 0.0296 | O48: 0.0681
B49: 2007-07-07 | C49: 4.7 | D49: 4 | E49: 47 | F49: 56 | G49: 47 | H49: 72 | I49: 77 | K49: 0.0689 | L49: 0.0236 | N49: 0.0689 | O49: 0.0236
B50: 2007-08-06T12:00:00 | C50: 4.6 | D50: 4 | E50: 48 | F50: 53 | G50: 66 | H50: 72 | I50: 72 | K50: 0.0758 | L50: 0.0845 | N50: 0.0758 | O50: 0.0845
B51: 2007-09-06 | C51: 4.7 | D51: 4 | E51: 50 | F51: 52 | G51: 54 | H51: 66 | I51: 71 | K51: 0.0484 | L51: 0.092 | N51: 0.0484 | O51: 0.092
B52: 2007-10-06T12:00:00 | C52: 4.7 | D52: 4 | E52: 51 | F52: 51 | G52: 39 | H52: 66 | I52: 69 | K52: 0.0078 | L52: 0.1551 | N52: 0.0078 | O52: 0.1551
B53: 2007-11-06 | C53: 4.7 | D53: 4 | E53: 50 | F53: 47 | G53: 37 | H53: 61 | I53: 63 | K53: 0.0525 | L53: 0.0895 | N53: 0.0525 | O53: 0.0895
B54: 2007-12-06T12:00:00 | C54: 5 | D54: 5 | E54: 48 | F54: 43 | G54: 33 | H54: 52 | I54: 55 | K54: 0.0476 | L54: 0.0769 | N54: 0.0476 | O54: 0.0769
B55: 2008-01-06 | C55: 5 | D55: 6 | E55: 55 | F55: 59 | G55: 38 | H55: 71 | I55: 83 | K55: 0.0425 | L55: 0.0707 | N55: 0.0425 | O55: 0.0707
B56: 2008-02-06 | C56: 4.9 | D56: 5 | E56: 54 | F56: 52 | G56: 37 | H56: 63 | I56: 67 | K56: 0.0194 | L56: 0.1202 | N56: 0.0194 | O56: 0.1202
B57: 2008-03-06 | C57: 5.1 | D57: 5 | E57: 54 | F57: 55 | G57: 39 | H57: 65 | I57: 72 | K57: 0.0694 | L57: 0.0824 | N57: 0.0694 | O57: 0.0824
B58: 2008-04-06 | C58: 5 | D58: 5 | E58: 57 | F58: 57 | G58: 41 | H58: 67 | I58: 81 | K58: 0.0514 | L58: 0.1414 | N58: 0.0514 | O58: 0.1414
B59: 2008-05-06 | C59: 5.4 | D59: 5 | E59: 54 | F59: 58 | G59: 40 | H59: 65 | I59: 78 | K59: 0.0654 | L59: 0.0496 | N59: 0.0654 | O59: 0.0496
B60: 2008-06-06 | C60: 5.6 | D60: 6 | E60: 54 | F60: 61 | G60: 41 | H60: 68 | I60: 83 | K60: 0.0352 | L60: 0.0801 | N60: 0.0352 | O60: 0.0801
B61: 2008-07-06 | C61: 5.8 | D61: 6 | E61: 54 | F61: 61 | G61: 48 | H61: 69 | I61: 82 | N61: 0.0479 | O61: 0.1422
B62: 2008-08-06 | C62: 6.1 | D62: 6 | E62: 52 | F62: 59 | G62: 74 | H62: 66 | I62: 80 | N62: 0.0052 | O62: 0.0525
B63: 2008-09-06 | C63: 6.1 | D63: 7 | E63: 56 | F63: 64 | G63: 48 | H63: 66 | I63: 78 | N63: 0.0554 | O63: 0.0511
B64: 2008-10-06 | C64: 6.5 | D64: 8 | E64: 56 | F64: 62 | G64: 39 | H64: 62 | I64: 73 | N64: 0.0405 | O64: 0.1013
B65: 2008-11-06 | C65: 6.8 | D65: 10 | E65: 54 | F65: 60 | G65: 37 | H65: 60 | I65: 63 | N65: 0.0301 | O65: 0.0932
B66: 2008-12-06 | C66: 7.3 | D66: 12 | E66: 54 | F66: 56 | G66: 38 | H66: 56 | I66: 60 | N66: 0.0762 | O66: 0.0541
B67: 2009-01-06 | C67: 7.8 | D67: 14 | E67: 59 | F67: 76 | G67: 40 | H67: 73 | I67: 86 | N67: 0.0075 | O67: 0.0253
B68: 2009-02-06 | C68: 8.3 | D68: 14 | E68: 59 | F68: 67 | G68: 44 | H68: 64 | I68: 77 | N68: 0.1033 | O68: 0.1208
B69: 2009-03-06 | C69: 8.7 | D69: 14 | E69: 58 | F69: 65 | G69: 44 | H69: 65 | I69: 81 | N69: 0.0278 | O69: 0.1167
B70: 2009-04-06 | C70: 9 | D70: 13 | E70: 59 | F70: 61 | G70: 43 | H70: 64 | I70: 78 | N70: 0.0739 | O70: 0.0784
B71: 2009-05-06 | C71: 9.4 | D71: 12 | E71: 57 | F71: 65 | G71: 43 | H71: 63 | I71: 86
B72: 2009-06-06 | C72: 9.5 | D72: 13 | E72: 58 | F72: 71 | G72: 46 | H72: 68 | I72: 97
B73: 2009-07-06 | C73: 9.5 | D73: 14 | E73: 56 | F73: 69 | G73: 51 | H73: 68 | I73: 93
B74: 2009-08-06 | C74: 9.6 | D74: 14 | E74: 56 | F74: 68 | G74: 69 | H74: 67 | I74: 90
B75: 2009-09-06 | C75: 9.8 | D75: 13 | E75: 60 | F75: 66 | G75: 69 | H75: 64 | I75: 86
B76: 2009-10-06 | C76: 10 | D76: 14 | E76: 61 | F76: 65 | G76: 40 | H76: 61 | I76: 82
B77: 2009-11-06 | C77: 9.9 | D77: 15 | E77: 60 | F77: 60 | G77: 39 | H77: 57 | I77: 75
B78: 2009-12-06 | C78: 9.9 | D78: 14 | E78: 58 | F78: 53 | G78: 37 | H78: 52 | I78: 65
B79: 2010-01-06 | C79: 9.8 | D79: 15 | E79: 64 | F79: 70 | G79: 38 | H79: 65 | I79: 93
B80: 2010-02-06 | C80: 9.8 | D80: 14 | E80: 64 | F80: 63 | G80: 39 | H80: 60 | I80: 81
B81: 2010-03-06 | C81: 9.9 | D81: 15 | E81: 63 | F81: 64 | G81: 40 | H81: 63 | I81: 83
B82: 2010-04-06 | C82: 9.9 | D82: 14 | E82: 63 | F82: 65 | G82: 41 | H82: 63 | I82: 85
B83: 2010-05-06 | C83: 9.6 | D83: 13 | E83: 62 | F83: 66 | G83: 39 | H83: 63 | I83: 88
B84: 2010-06-06 | C84: 9.4 | D84: 16 | E84: 60 | F84: 70 | G84: 40 | H84: 70 | I84: 96
B85: 2010-07-06 | C85: 9.4 | D85: 19 | E85: 57 | F85: 66 | G85: 46 | H85: 60 | I85: 85
B86: 2010-08-06 | C86: 9.5 | D86: 13 | E86: 57 | F86: 65 | G86: 65 | H86: 57 | I86: 82
B87: 2010-09-06 | C87: 9.5 | D87: 11 | E87: 58 | F87: 61 | G87: 67 | H87: 51 | I87: 73
B88: 2010-10-06 | C88: 9.4 | D88: 11 | E88: 58 | F88: 58 | G88: 36 | H88: 49 | I88: 62
B89: 2010-11-06 | C89: 9.8 | D89: 12 | E89: 58 | F89: 55 | G89: 35 | H89: 46 | I89: 61
B90: 2010-12-06 | C90: 9.3 | D90: 14 | E90: 57 | F90: 47 | G90: 33 | H90: 42 | I90: 57
B91: 2011-01-06 | C91: 9.1 | D91: 16 | E91: 71 | F91: 71 | G91: 40 | H91: 60 | I91: 90
B92: 2011-02-06 | C92: 9 | D92: 13 | E92: 70 | F92: 66 | G92: 42 | H92: 54 | I92: 80
B93: 2011-03-06 | C93: 9 | D93: 11 | E93: 70 | F93: 67 | G93: 41 | H93: 54 | I93: 80
B94: 2011-04-06 | C94: 9.1 | D94: 11 | E94: 70 | F94: 64 | G94: 41 | H94: 53 | I94: 76
B95: 2011-05-06 | C95: 9 | D95: 11 | E95: 68 | F95: 69 | G95: 41 | H95: 57 | I95: 89
B96: 2011-06-06 | C96: 9.1 | D96: 11 | E96: 69 | F96: 72 | G96: 44 | H96: 60 | I96: 90
B97: 2011-07-06 | C97: 9 | D97: 12 | E97: 66 | F97: 70 | G97: 49 | H97: 56 | I97: 85
B98: 2011-08-06 | C98: 9 | D98: 12 | E98: 67 | F98: 76 | G98: 73 | H98: 58 | I98: 87
B99: 2011-09-06 | C99: 9 | D99: 11 | E99: 70 | F99: 69 | G99: 77 | H99: 54 | I99: 76
B100: 2011-10-06 | C100: 8.8 | D100: 11 | E100: 72 | F100: 100 | G100: 41 | H100: 49 | I100: 73
B101: 2011-11-06 | C101: 8.6 | D101: 11 | E101: 70 | F101: 61 | G101: 38 | H101: 44 | I101: 68
B102: 2011-12-06 | C102: 8.5 | D102: 12 | E102: 67 | F102: 53 | G102: 35 | H102: 39 | I102: 65
B103: 2012-01-06 | C103: 8.3 | D103: 14 | E103: 75 | F103: 67 | G103: 39 | H103: 49 | I103: 90
B104: 2012-02-06 | C104: 8.3 | D104: 12 | E104: 72 | F104: 60 | G104: 39 | H104: 46 | I104: 76
B105: 2012-03-06 | C105: 8.2 | D105: 10 | E105: 70 | F105: 60 | G105: 38 | H105: 45 | I105: 77
B106: 2012-04-06 | C106: 8.2 | D106: 11 | E106: 73 | F106: 63 | G106: 41 | H106: 50 | I106: 86
B107: 2012-05-06 | C107: 8.2 | D107: 10 | E107: 71 | F107: 67 | G107: 41 | H107: 51 | I107: 98
B108: 2012-06-06 | C108: 8.2 | D108: 10 | E108: 72 | F108: 67 | G108: 41 | H108: 50 | I108: 100
B109: 2012-07-06 | C109: 8.2 | D109: 11 | E109: 71 | F109: 67 | G109: 49 | H109: 49 | I109: 93
B110: 2012-08-06 | C110: 8.1 | D110: 10 | E110: 71 | F110: 67 | G110: 82 | H110: 48 | I110: 95
B111: 2012-09-06 | C111: 7.8 | D111: 10 | E111: 75 | F111: 64 | G111: 73 | H111: 45 | I111: 84
B112: 2012-10-06 | C112: 7.8 | D112: 10 | E112: 72 | F112: 62 | G112: 37 | H112: 43 | I112: 76
B113: 2012-11-06 | C113: 7.7 | D113: 11 | E113: 71 | F113: 56 | G113: 35 | H113: 38 | I113: 70
B114: 2012-12-06 | C114: 7.9 | D114: 11 | E114: 72 | F114: 49 | G114: 33 | H114: 34 | I114: 64
B115: 2013-01-06 | C115: 8 | D115: 12 | E115: 76 | F115: 66 | G115: 37 | H115: 46 | I115: 92
B116: 2013-02-06 | C116: 7.7 | D116: 9 | E116: 74 | F116: 59 | G116: 36 | H116: 41 | I116: 75
B117: 2013-03-06 | C117: 7.5 | D117: 9 | E117: 73 | F117: 61 | G117: 36 | H117: 41 | I117: 83
B118: 2013-04-06 | C118: 7.6 | D118: 9 | E118: 76 | F118: 64 | G118: 39 | H118: 45 | I118: 89
B119: 2013-05-06 | C119: 7.5 | D119: 8 | E119: 74 | F119: 65 | G119: 42 | H119: 45 | I119: 96
B120: 2013-06-06 | C120: 7.5 | D120: 8 | E120: 74 | F120: 66 | G120: 41 | H120: 45 | I120: 99
B121: 2013-07-06 | C121: 7.3 | D121: 9 | E121: 74 | F121: 69 | G121: 54 | H121: 46 | I121: 97
B122: 2013-08-06 | C122: 7.2 | D122: 8 | E122: 73 | F122: 72 | G122: 91 | H122: 44 | I122: 93
B123: 2013-09-06 | C123: 7.2 | D123: 8 | E123: 78 | F123: 65 | G123: 72 | H123: 42 | I123: 84
B124: 2013-10-06 | C124: 7.2 | D124: 9 | E124: 80 | F124: 62 | G124: 37 | H124: 41 | I124: 77
B125: 2013-11-06 | C125: 6.9 | D125: 8 | E125: 77 | F125: 57 | G125: 33 | H125: 37 | I125: 70
B126: 2013-12-06 | C126: 6.7 | D126: 10 | E126: 73 | F126: 53 | G126: 32 | H126: 33 | I126: 62
B127: 2014-01-06 | C127: 6.6 | D127: 14 | E127: 80 | F127: 68 | G127: 38 | H127: 43 | I127: 91
B128: 2014-02-06 | C128: 6.7 | D128: 11 | E128: 79 | F128: 62 | G128: 39 | H128: 39 | I128: 78
B129: 2014-03-06 | C129: 6.7 | D129: 10 | E129: 79 | F129: 61 | G129: 36 | H129: 40 | I129: 81
B130: 2014-04-06 | C130: 6.2 | D130: 10 | E130: 79 | F130: 66 | G130: 40 | H130: 42 | I130: 80
B131: 2014-05-06 | C131: 6.3 | D131: 9 | E131: 78 | F131: 68 | G131: 42 | H131: 42 | I131: 85
B132: 2014-06-06 | C132: 6.1 | D132: 7 | E132: 77 | F132: 67 | G132: 39 | H132: 42 | I132: 87
B133: 2014-07-06 | C133: 6.2 | D133: 7 | E133: 78 | F133: 70 | G133: 49 | H133: 42 | I133: 86
B134: 2014-08-06 | C134: 6.1 | D134: 6 | E134: 75 | F134: 67 | G134: 94 | H134: 40 | I134: 80
B135: 2014-09-06 | C135: 5.9 | D135: 6 | E135: 79 | F135: 66 | G135: 60 | H135: 39 | I135: 75
B136: 2014-10-06 | C136: 5.7 | D136: 6 | E136: 79 | F136: 63 | G136: 34 | H136: 37 | I136: 69
B137: 2014-11-06 | C137: 5.8 | D137: 6 | E137: 77 | F137: 54 | G137: 31 | H137: 32 | I137: 61
B138: 2014-12-06 | C138: 5.6 | D138: 6 | E138: 75 | F138: 52 | G138: 31 | H138: 30 | I138: 59
B139: 2015-01-06 | C139: 5.7 | D139: 7 | E139: 80 | F139: 65 | G139: 34 | H139: 37 | I139: 75
B140: 2015-02-06 | C140: 5.5 | D140: 6 | E140: 81 | F140: 60 | G140: 34 | H140: 35 | I140: 67
B141: 2015-03-06 | C141: 5.4 | D141: 6 | E141: 80 | F141: 62 | G141: 35 | H141: 37 | I141: 70
B142: 2015-04-06 | C142: 5.4 | D142: 6 | E142: 80 | F142: 62 | G142: 36 | H142: 39 | I142: 72
B143: 2015-05-06 | C143: 5.6 | D143: 5 | E143: 80 | F143: 65 | G143: 37 | H143: 37 | I143: 75
B144: 2015-06-06 | C144: 5.3 | D144: 5 | E144: 79 | F144: 68 | G144: 39 | H144: 39 | I144: 82
B145: 2015-07-06 | C145: 5.2 | D145: 6 | E145: 79 | F145: 68 | G145: 48 | H145: 39 | I145: 82
B146: 2015-08-06 | C146: 5.1 | D146: 5 | E146: 82 | F146: 69 | G146: 84 | H146: 38 | I146: 77
B147: 2015-09-06 | C147: 5 | D147: 5 | E147: 87 | F147: 66 | G147: 100 | H147: 36 | I147: 71
B148: 2015-10-06 | C148: 5 | D148: 5 | E148: 84 | F148: 63 | G148: 34 | H148: 33 | I148: 66
B149: 2015-11-06 | C149: 5.1 | D149: 5 | E149: 82 | F149: 55 | G149: 32 | H149: 30 | I149: 60
B150: 2015-12-06 | C150: 5 | D150: 6 | E150: 81 | F150: 51 | G150: 30 | H150: 28 | I150: 54
B151: 2016-01-06 | C151: 4.9 | D151: 7 | E151: 89 | F151: 67 | G151: 33 | H151: 34 | I151: 74
B152: 2016-02-06 | C152: 4.9 | D152: 6 | E152: 97 | F152: 61 | G152: 34 | H152: 34 | I152: 70
B153: 2016-03-06 | C153: 5 | D153: 5 | E153: 95 | F153: 62 | G153: 35 | H153: 35 | I153: 71
B154: 2016-04-06 | C154: 5 | D154: 5 | E154: 93 | F154: 63 | G154: 35 | H154: 36 | I154: 77
B155: 2016-05-06 | C155: 4.8 | D155: 5 | E155: 89 | F155: 65 | G155: 36 | H155: 34 | I155: 82
B156: 2016-06-06 | C156: 4.9 | D156: 5 | E156: 86 | F156: 66 | G156: 35 | H156: 35 | I156: 78
B157: 2016-07-06 | C157: 4.8 | D157: 5 | E157: 83 | F157: 63 | G157: 41 | H157: 33 | I157: 69
B158: 2016-08-06 | C158: 4.9 | D158: 5 | E158: 83 | F158: 65 | G158: 71 | H158: 34 | I158: 72
B159: 2016-09-06 | C159: 5 | D159: 4 | E159: 87 | F159: 61 | G159: 90 | H159: 31 | I159: 62
B160: 2016-10-06 | C160: 4.9 | D160: 4 | E160: 85 | F160: 59 | G160: 31 | H160: 30 | I160: 58
B161: 2016-11-06 | C161: 4.7 | D161: 5 | E161: 84 | F161: 56 | G161: 31 | H161: 28 | I161: 53
B162: 2016-12-06 | C162: 4.7 | D162: 5 | E162: 82 | F162: 51 | G162: 29 | H162: 26 | I162: 50
B163: 2017-01-06 | C163: 4.7 | D163: 7 | E163: 91 | F163: 66 | G163: 33 | H163: 33 | I163: 71
B164: 2017-02-06 | C164: 4.6 | D164: 5 | E164: 90 | F164: 61 | G164: 36 | H164: 32 | I164: 64
B165: 2017-03-06 | C165: 4.4 | D165: 5 | E165: 89 | F165: 62 | G165: 34 | H165: 33 | I165: 66
B166: 2017-04-06 | C166: 4.4 | D166: 5 | E166: 87 | F166: 63 | G166: 34 | H166: 34 | I166: 66
B167: 2017-05-06 | C167: 4.4 | D167: 4 | E167: 84 | F167: 64 | G167: 35 | H167: 33 | I167: 71
B168: 2017-06-06 | C168: 4.3 | D168: 4 | E168: 85 | F168: 69 | G168: 34 | H168: 33 | I168: 74
B169: 2017-07-06 | C169: 4.3 | D169: 5 | E169: 84 | F169: 70 | G169: 41 | H169: 32 | I169: 72
B170: 2017-08-06 | C170: 4.4 | D170: 4 | E170: 85 | F170: 70 | G170: 71 | H170: 32 | I170: 71
B171: 2017-09-06 | C171: 4.2 | D171: 4 | E171: 86 | F171: 64 | G171: 79 | H171: 29 | I171: 61
B172: 2017-10-06 | C172: 4.1 | D172: 4 | E172: 86 | F172: 62 | G172: 31 | H172: 30 | I172: 61
B173: 2017-11-06 | C173: 4.2 | D173: 5 | E173: 89 | F173: 59 | G173: 29 | H173: 27 | I173: 56
B174: 2017-12-06 | C174: 4.1 | D174: 5 | E174: 86 | F174: 53 | G174: 28 | H174: 25 | I174: 51
B175: 2018-01-06 | C175: 4.1 | D175: 7 | E175: 90 | F175: 69 | G175: 32 | H175: 32 | I175: 70
B176: 2018-02-06 | C176: 4.1 | D176: 5 | E176: 91 | F176: 62 | G176: 32 | H176: 30 | I176: 64
B177: 2018-03-06 | C177: 4 | D177: 4 | E177: 89 | F177: 63 | G177: 32 | H177: 31 | I177: 63
B178: 2018-04-06 | C178: 4 | D178: 5 | E178: 90 | F178: 64 | G178: 34 | H178: 32 | I178: 68
B179: 2018-05-06 | C179: 3.8 | D179: 4 | E179: 88 | F179: 67 | G179: 34 | H179: 32 | I179: 70
B180: 2018-06-06 | C180: 4 | D180: 4 | E180: 88 | F180: 70 | G180: 33 | H180: 31 | I180: 75
B181: 2018-07-06 | C181: 3.8 | D181: 5 | E181: 88 | F181: 69 | G181: 41 | H181: 31 | I181: 75
B182: 2018-08-06 | C182: 3.8 | D182: 4 | E182: 89 | F182: 72 | G182: 80 | H182: 31 | I182: 74
B183: 2018-09-06 | C183: 3.7 | D183: 4 | E183: 88 | F183: 65 | G183: 78 | H183: 28 | I183: 62
B184: 2018-10-06 | C184: 3.8 | D184: 4 | E184: 91 | F184: 65 | G184: 31 | H184: 28 | I184: 59
B185: 2018-11-06 | C185: 3.7 | D185: 4 | E185: 90 | F185: 60 | G185: 29 | H185: 25 | I185: 53
B186: 2018-12-06 | C186: 3.9 | D186: 5 | E186: 87 | F186: 55 | G186: 27 | H186: 23 | I186: 48
B187: 2019-01-06 | C187: 4 | D187: 6 | E187: 95 | F187: 69 | G187: 31 | H187: 29 | I187: 64
B188: 2019-02-06 | C188: 3.8 | D188: 5 | E188: 95 | F188: 65 | G188: 31 | H188: 28 | I188: 61
B189: 2019-03-06 | C189: 3.8 | D189: 4 | E189: 89 | F189: 64 | G189: 31 | H189: 29 | I189: 60
B190: 2019-04-06 | C190: 3.6 | D190: 4 | E190: 91 | F190: 66 | G190: 32 | H190: 30 | I190: 62
B191: 2019-05-06 | C191: 3.6 | D191: 4 | E191: 89 | F191: 69 | G191: 33 | H191: 29 | I191: 68
B192: 2019-06-06 | C192: 3.7 | D192: 4 | E192: 88 | F192: 72 | G192: 31 | H192: 29 | I192: 69
B193: 2019-07-06 | C193: 3.7 | D193: 4 | E193: 86 | F193: 72 | G193: 40 | H193: 28 | I193: 66
B194: 2019-08-06 | C194: 3.7 | D194: 4 | E194: 87 | F194: 72 | G194: 82 | H194: 29 | I194: 65
B195: 2019-09-06 | C195: 3.5 | D195: 4 | E195: 89 | F195: 68 | G195: 71 | H195: 27 | I195: 63
B196: 2019-10-06 | C196: 3.6 | D196: 4 | E196: 92 | F196: 66 | G196: 30 | H196: 26 | I196: 63
B197: 2019-11-06 | C197: 3.5 | D197: 4 | E197: 89 | F197: 59 | G197: 28 | H197: 23 | I197: 55
B198: 2019-12-06 | C198: 3.5 | D198: 5 | E198: 88 | F198: 57 | G198: 26 | H198: 22 | I198: 51
B199: 2020-01-06 | C199: 3.6 | D199: 6 | E199: 96 | F199: 74 | G199: 30 | H199: 28 | I199: 71
B200: 2020-02-06 | C200: 3.5 | D200: 5 | E200: 94 | F200: 65 | G200: 31 | H200: 27 | I200: 65
B201: 2020-03-06 | C201: 4.4 | D201: 44 | E201: 99 | F201: 55 | G201: 33 | H201: 28 | I201: 49
B202: 2020-04-06 | C202: 14.7 | D202: 100 | E202: 100 | F202: 47 | G202: 48 | H202: 29 | I202: 40
... 3 more rows

Sheet Compare2distributions Ex
A1: Example: Comparing Two Distributions
A2: This example shows the probability of sampling from one of two possible underlying distributions. The user can increase the number of observed samples and the probability will determine the true distribution. The user can also explore different scenarios of sample points to confirm the true distribution. The user can also switch between the two distributions being the true distributions.
A6: Samples and Scenarios | G6: Distributions and Observed Samples | N6: Probability that Population 1 is the True Distribution
A7: Use the two slider bars as well as the distribution choice to view how many samples are needed to confirm or deny if the sample is from population 1 vs 2. | G7: In this graph the two hypothetical distributions are shown below. The green diamonds show the observed data as it is sampled. One can increase the number of samples using the slider bar to the right. | N7: This graph shows the probability that population 1 is the true distribution. One will note how few samples it takes to get a reasonable estimate of the population.
A10: Scenario
A11: Different scenarios will randomly changes the samples to show how different random samples could change the estimates.
C13: 142
A14: Number of Samples
A15: Enter number of samples or use slider bar below. For a given scenario, increasing the number of samples improves estimates.
C17: 6
A18: Population Distributions
C21: Pop1 | D21: Pop2 | E21: True Pop
B22: The True, Hidden Population: | E22: 2
B23: Chance This is The True Population: | C23: 0.5 | D23: =1-C23 -> 0.5
B24: Population Mean: | C24: 100 | D24: 130 | E24: =IF(E22=1,C24,D24) -> 130
B25: Population Standard Deviation: | C25: 40 | D25: 40 | E25: =IF(E22=1,C25,D25) -> 40
B29: Distribution Chart Calcs | F29: Random Samples and Inferences
C30: Chart minimum | D30: =MIN(C24-4*C25,D24-4*D25) -> -60 | F30: This table is used to generate random samples and make inferences for the chart on the right above. For each sample, the probability of a sample in that bin for populations 1 and 2 are computed as p(O|Pop1) and p(O|Pop2), respectively. The cumulative set of observations is shown as O1..On and the probability for that cumulative set is also computed for each population and in total. Finally, the probability of Population 1 is computed given the cumulative samples.
C31: Chart maximum | D31: =MAX(C24+4*C25,D24+4*D25) -> 290
C32: Chart increment size | D32: =(D31-D30)/200 -> 1.75
B33: X Values | C33: Pop 1 | D33: Pop 2 | F33: Y-axis for Sample | G33: Sample Count | H33: Random Number | I33: Sample Value | J33: Bin of Sample | K33: p(O|Pop1) | L33: p(O|Pop2) | M33: p(O1..On|Pop1) | O33: p(O1..On|Pop2) | P33: P(O1..On) | Q33: P(Pop1|O1..On)
B34: =D30 -> -60 | C34: =NORMDIST(B34+D$32/2,C$24,C$25,1)-NORMDIST(B34-D$32/2,C$24,C$25,1) -> 5.862078557e-06 | D34: =NORMDIST(B34+D$32/2,D$24,D$25,1)-NORMDIST(B34-D$32/2,D$24,D$25,1) -> 2.204194989e-07 | F34: 0 | G34: 0 | Q34: =C23 -> 0.5 | R34: =1-Q34 -> 0.5
B35: =B34+D$32 -> -58.25 | C35: 6.976305419e-06 | D35: 2.710640239e-07 | F35: =IF(I35<>"",0,"") -> 0 | G35: =IF(C$17>G34,G34+1,"") -> 1 | H35: =IFERROR(( MOD(( MOD( MOD( 999999999999989, MOD( PM_Index*2499997 +$G35*1800451, 7450589 ) * 4658 + 7450581 ) * 383, 99991 ) * 7440893 + MOD( MOD( 999999999999989, MOD( PM_Index*2246527 +$G35*2399993, 7450987 ) * 7580 + 7560584 ) * 17669, 7440893 )) * 1343, 4294967296 ) + 0.5 ) / 4294967296,NA()) -> 0.3903854281 | I35: =IFERROR(NORMINV(H35,E$24,E$25),NA()) -> 118.8674153 | J35: =IFERROR(SMALL(B$34:B$234,COUNTIF(B$34:B$234,"<="&I35)),"") -> 118.5 | K35: =IFERROR(NORMDIST(J35+D$32,C$24,C$25,1)-NORMDIST(J35,C$24,C$25,1),"") -> 0.01552082188 | L35: =IFERROR(NORMDIST(J35+D$32,D$24,D$25,1)-NORMDIST(J35,D$24,D$25,1),"") -> 0.01684747234 | N35: =_xlfn.IFNA(K35,"") -> 0.01552082188 | O35: =_xlfn.IFNA(L35,"") -> 0.01684747234 | P35: =IFERROR(N35*C$23+O35*D$23,NA()) -> 0.01618414711 | Q35: =IFERROR(N35*C$23/P35,"") -> 0.4795069451
B36: -56.5 | C36: 8.286444055e-06 | D36: 3.3270752e-07 | F36: 0 | G36: 2 | H36: 0.02986713487 | I36: 54.69000407 | J36: 53.75 | K36: 0.009172158326 | L36: 0.002957433751 | N36: =IFERROR(_xlfn.IFNA(K36*N35,""),"") -> 0.0001423594356 | O36: =IFERROR(_xlfn.IFNA(L36*O35,""),"") -> 4.982528331e-05 | P36: 9.609235947e-05 | Q36: 0.7407427418
B37: -54.75 | C37: 9.823806176e-06 | D37: 4.075887783e-07 | F37: 0 | G37: 3 | H37: 0.1346623892 | I37: 85.81524588 | J37: 85.25 | K37: 0.01643349766 | L37: 0.009563960236 | N37: 2.339463453e-06 | O37: 4.765270283e-07 | P37: 1.40799524e-06 | Q37: 0.8307781821
B38: -53 | C38: 1.162412398e-05 | D38: 4.98368616e-07 | F38: 0 | G38: 4 | H38: 0.8575489187 | I38: 172.7748726 | J38: 172.75 | K38: 0.003208467139 | L38: 0.009629552344 | N38: 7.50609161e-09 | O38: 4.588741962e-09 | P38: 6.047416786e-09 | Q38: 0.6206031332
B39: -51.25 | C39: 1.372807197e-05 | D39: 6.082022438e-07 | F39: 0 | G39: 5 | H39: 0.1483536075 | I39: 88.2591734 | J39: 87 | K39: 0.01666879276 | L39: 0.01002443528 | N39: 1.251174855e-10 | O39: 4.599954684e-11 | P39: 8.555851617e-11 | Q39: 0.7311807819
B40: -49.5 | C40: 1.618183345e-05 | D40: 7.408225887e-07 | F40: 0 | G40: 6 | H40: 0.131847907 | I40: 85.29206284 | J40: 85.25 | K40: 0.01643349766 | L40: 0.009563960236 | N40: 2.056117906e-12 | O40: 4.399378368e-13 | P40: 1.248027871e-12 | Q40: 0.82374679
B41: -47.75 | C41: 1.903771285e-05 | D41: 9.006359527e-07
B42: -46 | C42: 2.235479455e-05 | D42: 1.09283151e-06
B43: -44.25 | C43: 2.619964816e-05 | D43: 1.323506272e-06
B44: -42.5 | C44: 3.064707994e-05 | D44: 1.599807262e-06
B45: -40.75 | C45: 3.578092873e-05 | D45: 1.930092796e-06
B46: -39 | C46: 4.169490438e-05 | D46: 2.324114826e-06
B47: -37.25 | C47: 4.849346548e-05 | D47: 2.793224471e-06
B48: -35.5 | C48: 5.629273192e-05 | D48: 3.350602905e-06
B49: -33.75 | C49: 6.522142691e-05 | D49: 4.01151988e-06
B50: -32 | C50: 7.54218415e-05 | D50: 4.793622196e-06
B51: -30.25 | C51: 8.705081341e-05 | D51: 5.717254459e-06
B52: -28.5 | C52: 0.0001002807101 | D52: 6.805814486e-06
B53: -26.75 | C53: 0.0001153004053 | D53: 8.086145607e-06
B54: -25 | C54: 0.0001323162343 | D54: 9.588968093e-06
B55: -23.25 | C55: 0.0001515529159 | D55: 1.134935172e-05
B56: -21.5 | C56: 0.0001732544214 | D56: 1.340723132e-05
B57: -19.75 | C57: 0.0001976847748 | D57: 1.580796682e-05
B58: -18 | C58: 0.0002251287622 | D58: 1.860294895e-05
B59: -16.25 | C59: 0.0002558925314 | D59: 2.185025142e-05
B60: -14.5 | C60: 0.0002903040557 | D60: 2.561532959e-05
B61: -12.75 | C61: 0.0003287134403 | D61: 2.997176535e-05
B62: -11 | C62: 0.0003714930436 | D62: 3.500205678e-05
B63: -9.25 | C63: 0.0004190373896 | D63: 4.079845075e-05
B64: -7.5 | C64: 0.0004717628421 | D64: 4.746381518e-05
B65: -5.75 | C65: 0.0005301070162 | D65: 5.511254701e-05
B66: -4 | C66: 0.000594527899 | D66: 6.387151037e-05
B67: =B66+D$32 -> -2.25 | C67: 0.0006655026543 | D67: 7.388099836e-05 | F67: =IF(I67<>"",0,"") ->  | G67: =IF(C$17>G66,G66+1,"") ->  | H67: =IFERROR(( MOD(( MOD( MOD( 999999999999989, MOD( PM_Index*2499997 +$G67*1800451, 7450589 ) * 4658 + 7450581 ) * 383, 99991 ) * 7440893 + MOD( MOD( 999999999999989, MOD( PM_Index*2246527 +$G67*2399993, 7450987 ) * 7580 + 7560584 ) * 17669, 7440893 )) * 1343, 4294967296 ) + 0.5 ) / 4294967296,NA()) ->  | I67: =IFERROR(NORMINV(H67,E$24,E$25),NA()) ->  | J67: =IFERROR(SMALL(B$34:B$234,COUNTIF(B$34:B$234,"<="&I67)),"") ->  | K67: =IFERROR(NORMDIST(J67+D$32,C$24,C$25,1)-NORMDIST(J67,C$24,C$25,1),"") ->  | L67: =IFERROR(NORMDIST(J67+D$32,D$24,D$25,1)-NORMDIST(J67,D$24,D$25,1),"") ->  | P67: =IFERROR(N67*C$23+O67*D$23,NA()) -> 
B68: -0.5 | C68: 0.0007435260866 | D68: 8.529571038e-05 | N68: =IFERROR(_xlfn.IFNA(K68*N67,""),"") ->  | O68: =IFERROR(_xlfn.IFNA(L68*O67,""),"") -> 
B69: 1.25 | C69: 0.0008291087423 | D69: 9.828573534e-05
B70: 3 | C70: 0.0009227746266 | D70: 0.0001130375296
B71: 4.75 | C71: 0.00102505852 | D71: 0.0001297548768
B72: 6.5 | C72: 0.001136502881 | D72: 0.0001486598148
B73: 8.25 | C73: 0.001257654323 | D73: 0.0001699935138
B74: 10 | C74: 0.001389059666 | D74: 0.0001940170871
B75: 11.75 | C75: 0.001531261556 | D75: 0.0002210123156
B76: 13.5 | C76: 0.001684793675 | D76: 0.0002512822634
B77: 15.25 | C77: 0.001850175533 | D77: 0.0002851517633
B78: 17 | C78: 0.002027906883 | D78: 0.0003229677466
B79: 18.75 | C79: 0.002218461778 | D79: 0.0003650993931
B80: 20.5 | C80: 0.002422282312 | D80: 0.0004119380741
B81: 22.25 | C81: 0.002639772078 | D81: 0.0004638970633
B82: 24 | C82: 0.002871289412 | D82: 0.0005214109867
B83: 25.75 | C83: 0.003117140472 | D83: 0.0005849349864
B84: 27.5 | C84: 0.003377572222 | D84: 0.0006549435726
B85: 29.25 | C85: 0.003652765398 | D85: 0.0007319291374
B86: 31 | C86: 0.003942827545 | D86: 0.0008164001088
B87: 32.75 | C87: 0.004247786198 | D87: 0.0009088787242
B88: 34.5 | C88: 0.004567582314 | D88: 0.001009898405
B89: 36.25 | C89: 0.004902064054 | D89: 0.001120000718
B90: 38 | C90: 0.005250980996 | D90: 0.001239731915
B91: 39.75 | C91: 0.005613978914 | D91: 0.001369639043
B92: 41.5 | C92: 0.00599059519 | D92: 0.001510265632
B93: 43.25 | C93: 0.006380254986 | D93: 0.001662146951
B94: 45 | C94: 0.00678226826 | D94: 0.001825804868
B95: 46.75 | C95: 0.007195827722 | D95: 0.002001742315
B96: 48.5 | C96: 0.007620007813 | D96: 0.002190437394
B97: 50.25 | C97: 0.008053764789 | D97: 0.002392337156
B98: 52 | C98: =NORMDIST(B98+D$32/2,C$24,C$25,1)-NORMDIST(B98-D$32/2,C$24,C$25,1) -> 0.008495937969 | D98: =NORMDIST(B98+D$32/2,D$24,D$25,1)-NORMDIST(B98-D$32/2,D$24,D$25,1) -> 0.002607851106
B99: =B98+D$32 -> 53.75 | C99: 0.008945252205 | D99: 0.002837344465 | Q99: =IFERROR(N99*C$23/P99,"") -> 
B100: 55.5 | C100: 0.009400321611 | D100: 0.003081131273
B101: 57.25 | C101: 0.009859654588 | D101: 0.00333946738
B102: 59 | C102: 0.01032166013 | D102: 0.003612543415
B103: 60.75 | C103: 0.01078465545 | D103: 0.003900477799
B104: 62.5 | C104: 0.0112468748 | D104: 0.004203309906
B105: 64.25 | C105: 0.01170647958 | D105: 0.004520993452
B106: 66 | C106: 0.01216156959 | D106: 0.004853390218
B107: 67.75 | C107: 0.01261019529 | D107: 0.005200264202
B108: 69.5 | C108: 0.0130503711 | D108: 0.005561276303
B109: 71.25 | C109: 0.01348008951 | D109: 0.005935979639
B110: 73 | C110: 0.01389733596 | D110: 0.006323815609
B111: 74.75 | C111: 0.01430010422 | D111: 0.006724110776
B112: 76.5 | C112: 0.01468641225 | D112: 0.007136074686
B113: 78.25 | C113: 0.01505431825 | D113: 0.007558798698
B114: 80 | C114: 0.01540193678 | D114: 0.007991255904
B115: 81.75 | C115: 0.0157274548 | D115: 0.008432302204
B116: 83.5 | C116: 0.01602914735 | D116: 0.008880678604
B117: 85.25 | C117: 0.01630539268 | D117: 0.009335014763
B118: 87 | C118: 0.01655468681 | D118: 0.009793833824
B119: 88.75 | C119: 0.01677565715 | D119: 0.01025555855
B120: 90.5 | C120: 0.01696707502 | D120: 0.01071851875
B121: 92.25 | C121: 0.0171278671 | D121: 0.01118095993
B122: 94 | C122: 0.01725712538 | D122: 0.01164105326
B123: 95.75 | C123: 0.01735411577 | D123: 0.01209690658
B124: 97.5 | C124: 0.01741828499 | D124: 0.01254657663
B125: 99.25 | C125: 0.01744926585 | D125: 0.01298808212
B126: 101 | C126: 0.01744688076 | D126: 0.01341941779
B127: 102.75 | C127: 0.01741114338 | D127: 0.01383856914
B128: 104.5 | C128: 0.01734225855 | D128: 0.0142435278
B129: 106.25 | C129: 0.01724062031 | D129: 0.01463230729
B130: 108 | C130: 0.01710680811 | D130: 0.01500295907
B131: =B130+D$32 -> 109.75 | C131: 0.01694158138 | D131: 0.01535358868
B132: 111.5 | C132: 0.01674587227 | D132: 0.01568237175
B133: 113.25 | C133: 0.01652077696 | D133: 0.01598756979
B134: 115 | C134: 0.01626754541 | D134: 0.01626754541
B135: 116.75 | C135: 0.01598756979 | D135: 0.01652077696
B136: 118.5 | C136: 0.01568237175 | D136: 0.01674587227
B137: 120.25 | C137: 0.01535358868 | D137: 0.01694158138
B138: 122 | C138: 0.01500295907 | D138: 0.01710680811
B139: 123.75 | C139: 0.01463230729 | D139: 0.01724062031
B140: 125.5 | C140: 0.0142435278 | D140: 0.01734225855
B141: 127.25 | C141: 0.01383856914 | D141: 0.01741114338
B142: 129 | C142: 0.01341941779 | D142: 0.01744688076
B143: 130.75 | C143: 0.01298808212 | D143: 0.01744926585
B144: 132.5 | C144: 0.01254657663 | D144: 0.01741828499
B145: 134.25 | C145: 0.01209690658 | D145: 0.01735411577
B146: 136 | C146: 0.01164105326 | D146: 0.01725712538
B147: 137.75 | C147: 0.01118095993 | D147: 0.0171278671
B148: 139.5 | C148: 0.01071851875 | D148: 0.01696707502
B149: 141.25 | C149: 0.01025555855 | D149: 0.01677565715
B150: 143 | C150: 0.009793833824 | D150: 0.01655468681
B151: 144.75 | C151: 0.009335014763 | D151: 0.01630539268
B152: 146.5 | C152: 0.008880678604 | D152: 0.01602914735
B153: 148.25 | C153: 0.008432302204 | D153: 0.0157274548
B154: 150 | C154: 0.007991255904 | D154: 0.01540193678
B155: 151.75 | C155: 0.007558798698 | D155: 0.01505431825
B156: 153.5 | C156: 0.007136074686 | D156: 0.01468641225
B157: 155.25 | C157: 0.006724110776 | D157: 0.01430010422
B158: 157 | C158: 0.006323815609 | D158: 0.01389733596
B159: 158.75 | C159: 0.005935979639 | D159: 0.01348008951
B160: 160.5 | C160: 0.005561276303 | D160: 0.0130503711
B161: 162.25 | C161: 0.005200264202 | D161: 0.01261019529
B162: 164 | C162: =NORMDIST(B162+D$32/2,C$24,C$25,1)-NORMDIST(B162-D$32/2,C$24,C$25,1) -> 0.004853390218 | D162: =NORMDIST(B162+D$32/2,D$24,D$25,1)-NORMDIST(B162-D$32/2,D$24,D$25,1) -> 0.01216156959
B163: =B162+D$32 -> 165.75 | C163: 0.004520993452 | D163: 0.01170647958 | Q163: =IFERROR(N163*C$23/P163,"") -> 
B164: 167.5 | C164: 0.004203309906 | D164: 0.0112468748
B165: 169.25 | C165: 0.003900477799 | D165: 0.01078465545
B166: 171 | C166: 0.003612543415 | D166: 0.01032166013
B167: 172.75 | C167: 0.00333946738 | D167: 0.009859654588
B168: 174.5 | C168: 0.003081131273 | D168: 0.009400321611
B169: 176.25 | C169: 0.002837344465 | D169: 0.008945252205
B170: 178 | C170: 0.002607851106 | D170: 0.008495937969
B171: 179.75 | C171: 0.002392337156 | D171: 0.008053764789
B172: 181.5 | C172: 0.002190437394 | D172: 0.007620007813
B173: 183.25 | C173: 0.002001742315 | D173: 0.007195827722
B174: 185 | C174: 0.001825804868 | D174: 0.00678226826
B175: 186.75 | C175: 0.001662146951 | D175: 0.006380254986
B176: 188.5 | C176: 0.001510265632 | D176: 0.00599059519
B177: 190.25 | C177: 0.001369639043 | D177: 0.005613978914
B178: 192 | C178: 0.001239731915 | D178: 0.005250980996
B179: 193.75 | C179: 0.001120000718 | D179: 0.004902064054
B180: 195.5 | C180: 0.001009898405 | D180: 0.004567582314
B181: 197.25 | C181: 0.0009088787242 | D181: 0.004247786198
B182: 199 | C182: 0.0008164001088 | D182: 0.003942827545
B183: 200.75 | C183: 0.0007319291374 | D183: 0.003652765398
B184: 202.5 | C184: 0.0006549435726 | D184: 0.003377572222
B185: 204.25 | C185: 0.0005849349864 | D185: 0.003117140472
B186: 206 | C186: 0.0005214109867 | D186: 0.002871289412
B187: 207.75 | C187: 0.0004638970633 | D187: 0.002639772078
B188: 209.5 | C188: 0.0004119380741 | D188: 0.002422282312
B189: 211.25 | C189: 0.0003650993931 | D189: 0.002218461778
B190: 213 | C190: 0.0003229677466 | D190: 0.002027906883
B191: 214.75 | C191: 0.0002851517633 | D191: 0.001850175533
B192: 216.5 | C192: 0.0002512822634 | D192: 0.001684793675
B193: 218.25 | C193: 0.0002210123156 | D193: 0.001531261556
B194: 220 | C194: 0.0001940170871 | D194: 0.001389059666
B195: =B194+D$32 -> 221.75 | C195: 0.0001699935138 | D195: 0.001257654323
B196: 223.5 | C196: 0.0001486598148 | D196: 0.001136502881
B197: 225.25 | C197: 0.0001297548768 | D197: 0.00102505852
B198: 227 | C198: 0.0001130375296 | D198: 0.0009227746266
B199: 228.75 | C199: 9.828573534e-05 | D199: 0.0008291087423
B200: 230.5 | C200: 8.529571038e-05 | D200: 0.0007435260866
B201: 232.25 | C201: 7.388099836e-05 | D201: 0.0006655026543
B202: 234 | C202: 6.387151037e-05 | D202: 0.000594527899
B203: 235.75 | C203: 5.511254701e-05 | D203: 0.0005301070162
B204: 237.5 | C204: 4.746381518e-05 | D204: 0.0004717628421
B205: 239.25 | C205: 4.079845075e-05 | D205: 0.0004190373896
B206: 241 | C206: 3.500205678e-05 | D206: 0.0003714930436
B207: 242.75 | C207: 2.997176535e-05 | D207: 0.0003287134403
B208: 244.5 | C208: 2.561532959e-05 | D208: 0.0002903040557
B209: 246.25 | C209: 2.185025142e-05 | D209: 0.0002558925314
B210: 248 | C210: 1.860294895e-05 | D210: 0.0002251287622
B211: 249.75 | C211: 1.580796682e-05 | D211: 0.0001976847748
B212: 251.5 | C212: 1.340723132e-05 | D212: 0.0001732544214
... 22 more rows

Sheet ControlledExperiment Ws
A1: Worksheet: A Controlled Experiment (The Difference Between Means)
A2: This is an example of a controlled experiment. This compares the test group and the control group. If the confidence in the difference is high, it is very unlikely that the difference is due to chance alone or due to factors other than the new training program. (NOTE: This method uses z-test and therefore requires sample sizes greater than 30)
B4: Control | C4: Test
A5: Sample Size | B5: =COUNT(B22:B112) -> 40 | C5: =COUNT(C22:C111) -> 60
A6: Mean | B6: =AVERAGE(B22:B112) -> 8.775920078 | C6: =AVERAGE(C22:C111) -> 7.440544372
A7: Variance | B7: =VAR(B22:B112) -> 8.135639797 | C7: =VAR(C22:C111) -> 6.003806302
A8: Standard Deviation | B8: =B7^0.5 -> 2.852304296 | C8: =C7^0.5 -> 2.450266578
A9: Standard Error of Estimate of Mean | B9: =B8/B5^0.5 -> 0.4509889078 | C9: =C8/C5^0.5 -> 0.316328055
A10: Upper Bound of 90% CI | B10: =B6+1.645*B9 -> 9.517796831 | C10: =C6+1.645*C9 -> 7.960904022
A11: Lower Bound of 90% CI | B11: =B6-1.645*B9 -> 8.034043324 | C11: =C6-1.645*C9 -> 6.920184722
A13: Test vs. Control
A14: Difference Between Means | C14: =ABS(B6-C6) -> 1.335375706
A15: Standard Error of the Estimate of Difference between means | C15: =(C7/C5+B7/B5)^0.5 -> 0.5508669833
A16: Confidence in difference | C16: =1-NORMDIST(0,C14,C15,1) -> 0.9923275412
A17: 90% Confidence Interval of difference
A18: Upper Bound | C18: =C14+1.645*C15 -> 2.241551893
A19: Lower Bound | C19: =C14-1.645*C15 -> 0.429199518
A21: sample # | B21: Control | C21: Test | D21: Std Error for Estimate of Mean (Normalized) | E21: cpf for Control | F21: Incremental P for Control | G21: Control | H21: cpf for Test | I21: Incremental P for Test | J21: Test | K21: ND Test | L21: Confidence Interval Bars | N21: For Plotting
A22: 1 | B22: 8.865775415 | C22: 9.042959469 | D22: -4.5 | E22: =NORMDIST(D22,0,1,1) -> 3.397673125e-06 | H22: =NORMDIST(D22,0,1,1) -> 3.397673125e-06 | K22: =NORMDIST(D22,C$6,C$7,C$5) -> 0.02336003769 | L22: =B10 -> 9.517796831 | M22: 0 | N22: 0
A23: 2 | B23: 0 | C23: 6.061949914 | D23: -4.4 | E23: 5.412543908e-06 | F23: =E23-E22 -> 2.014870783e-06 | G23: =B$6+(D23*B$9) -> 6.791568883 | H23: 5.412543908e-06 | I23: =H23-H22 -> 2.014870783e-06 | J23: =C$6+(D23*C$9) -> 6.04870093 | K23: 0.02429493337 | L23: =L22 -> 9.517796831 | M23: =M32 -> 0.01 | N23: 0
A24: 3 | B24: 12.39707604 | C24: 9.083450026 | D24: -4.3 | E24: 8.539905471e-06 | F24: 3.127361563e-06 | G24: 6.836667774 | H24: 8.539905471e-06 | I24: 3.127361563e-06 | J24: 6.080333736 | K24: 0.02526104841 | L24: =B11 -> 8.034043324 | M24: 0 | N24: 0
A25: 4 | B25: 10.59279433 | C25: 7.198408206 | D25: -4.2 | E25: 1.334574902e-05 | F25: 4.805843545e-06 | G25: 6.881766665 | H25: 1.334574902e-05 | I25: 4.805843545e-06 | J25: 6.111966541 | K25: 0.02625914838 | L25: =L24 -> 8.034043324 | M25: =M32 -> 0.01 | N25: 0
A26: 5 | B26: 8.299772882 | C26: 8.074889541 | D26: -4.1 | E26: 2.065750691e-05 | F26: 7.311757897e-06 | G26: 6.926865556 | H26: 2.065750691e-05 | I26: 7.311757897e-06 | J26: 6.143599347 | K26: 0.02729000618 | L26: =C10 -> 7.960904022 | M26: 0 | N26: 0
A27: 6 | B27: 7.624847061 | C27: 11.06970437 | D27: -4 | E27: 3.167124183e-05 | F27: 1.101373492e-05 | G27: 6.971964446 | H27: 3.167124183e-05 | I27: 1.101373492e-05 | J27: 6.175232152 | K27: 0.02835440161 | L27: =L26 -> 7.960904022 | M27: =M32 -> 0.01 | N27: 0
A28: 7 | B28: 10.66052246 | C28: 11.48888287 | D28: -3.9 | E28: 4.809634402e-05 | F28: 1.642510218e-05 | G28: 7.017063337 | H28: 4.809634402e-05 | I28: 1.642510218e-05 | J28: 6.206864958 | K28: 0.02945312093 | L28: =C11 -> 6.920184722 | M28: 0 | N28: 0
A29: 8 | B29: 7.694104969 | C29: 10.10916031 | D29: -3.8 | E29: 7.234804393e-05 | F29: 2.425169991e-05 | G29: 7.062162228 | H29: 7.234804393e-05 | I29: 2.425169991e-05 | J29: 6.238497763 | K29: 0.03058695639 | L29: =L28 -> 6.920184722 | M29: =M32 -> 0.01 | N29: 0
A30: 9 | B30: 4.985182419 | C30: 9.056429208 | D30: -3.7 | E30: 0.0001077997335 | F30: 3.545168955e-05 | G30: 7.107261119 | H30: 0.0001077997335 | I30: 3.545168955e-05 | J30: 6.270130569 | K30: 0.03175670578 | N30: 0
A31: 10 | B31: 9.464949242 | C31: 8.76632287 | D31: -3.6 | E31: 0.0001591085902 | F31: 5.130885668e-05 | G31: 7.15236001 | H31: 0.0001591085902 | I31: 5.130885668e-05 | J31: 6.301763374 | K31: 0.03296317193 | N31: 0
A32: 11 | B32: 8.796688644 | C32: 4.036438779 | D32: -3.5 | E32: 0.000232629079 | F32: 7.352048888e-05 | G32: 7.1974589 | H32: 0.000232629079 | I32: 7.352048888e-05 | J32: 6.33339618 | K32: 0.03420716217 | M32: 0.01 | N32: 0
A33: 12 | B33: 9.58913885 | C33: 8.99781783 | D33: -3.4 | E33: 0.0003369292657 | F33: 0.0001043001866 | G33: 7.242557791 | H33: 0.0003369292657 | I33: 0.0001043001866 | J33: 6.365028985 | K33: 0.03548948779 | N33: 0
A34: 13 | B34: 6.983551687 | C34: 13.10955067 | D34: -3.3 | E34: 0.0004834241424 | F34: 0.0001464948767 | G34: 7.287656682 | H34: 0.0004834241424 | I34: 0.0001464948767 | J34: 6.396661791 | K34: 0.03681096351 | N34: 0
A35: 14 | B35: 7.516652862 | C35: 7.455498146 | D35: -3.2 | E35: 0.0006871379379 | F35: 0.0002037137955 | G35: 7.332755573 | H35: 0.0006871379379 | I35: 0.0002037137955 | J35: 6.428294596 | K35: 0.03817240686 | N35: 0
A36: 15 | B36: 7.628743987 | C36: 11.16706337 | D36: -3.1 | E36: 0.0009676032132 | F36: 0.0002804652753 | G36: 7.377854463 | H36: 0.0009676032132 | I36: 0.0002804652753 | J36: 6.459927402 | K36: 0.03957463758 | N36: 0
A37: 16 | B37: 12.2198562 | C37: 6.807103489 | D37: -3 | E37: 0.001349898032 | F37: 0.0003822948184 | G37: 7.422953354 | H37: 0.001349898032 | I37: 0.0003822948184 | J37: 6.491560207 | K37: 0.04101847702 | N37: 0
A38: 17 | B38: 8.189173358 | C38: 7.787677869 | D38: -2.9 | E38: 0.0018658133 | F38: 0.0005159152688 | G38: 7.468052245 | H38: 0.0018658133 | I38: 0.0005159152688 | J38: 6.523193013 | K38: 0.04250474746 | N38: 0
A39: 18 | B39: 13.19097499 | C39: 3.525119478 | D39: -2.8 | E39: 0.00255513033 | F39: 0.00068931703 | G39: 7.513151136 | H39: 0.00255513033 | I39: 0.00068931703 | J39: 6.554825818 | K39: 0.04403427147 | N39: 0
A40: 19 | B40: 5.520235125 | C40: 7.359304876 | D40: -2.7 | E40: 0.003466973803 | F40: 0.0009118434726 | G40: 7.558250027 | H40: 0.003466973803 | I40: 0.0009118434726 | J40: 6.586458624 | K40: 0.04560787122 | N40: 0
A41: 20 | B41: 10.13120616 | C41: 10.13367241 | D41: -2.6 | E41: 0.004661188024 | F41: 0.001194214221 | G41: 7.603348917 | H41: 0.004661188024 | I41: 0.001194214221 | J41: 6.618091429 | K41: 0.04722636775 | N41: 0
A42: 21 | B42: 8.753839233 | C42: 2.704554061 | D42: -2.5 | E42: 0.006209665326 | F42: 0.001548477302 | G42: 7.648447808 | H42: 0.006209665326 | I42: 0.001548477302 | J42: 6.649724235 | K42: 0.04889058028 | N42: 0
A43: 22 | B43: 8.247016551 | C43: 10.21360525 | D43: -2.4 | E43: 0.008197535925 | F43: 0.001987870599 | G43: 7.693546699 | H43: 0.008197535925 | I43: 0.001987870599 | J43: 6.68135704 | K43: 0.05060132544 | N43: 0
A44: 23 | B44: 9.557490684 | C44: 4.628518795 | D44: -2.3 | E44: 0.01072411002 | F44: 0.002526574097 | G44: 7.73864559 | H44: 0.01072411002 | I44: 0.002526574097 | J44: 6.712989846 | K44: 0.05235941652 | N44: 0
A45: 24 | B45: 10.39737165 | C45: 8.198254006 | D45: -2.2 | E45: 0.01390344751 | F45: 0.003179337492 | G45: 7.78374448 | H45: 0.01390344751 | I45: 0.003179337492 | J45: 6.744622651 | K45: 0.05416566269 | N45: 0
A46: 25 | B46: 11.89830663 | C46: 5.38554736 | D46: -2.1 | E46: 0.01786442056 | F46: 0.003960973049 | G46: 7.828843371 | H46: 0.01786442056 | I46: 0.003960973049 | J46: 6.776255457 | K46: 0.05602086821 | N46: 0
A47: 26 | B47: 12.36445048 | C47: 10.18240101 | D47: -2 | E47: 0.02275013195 | F47: 0.004885711385 | G47: 7.873942262 | H47: 0.02275013195 | I47: 0.004885711385 | J47: 6.807888262 | K47: 0.05792583159 | N47: 0
A48: 27 | B48: 8.811174904 | C48: 7.335126882 | D48: -1.9 | E48: 0.02871655982 | F48: 0.005966427868 | G48: 7.919041153 | H48: 0.02871655982 | I48: 0.005966427868 | J48: 6.839521068 | K48: 0.05988134481 | N48: 0
A49: 28 | B49: 1.035675127 | C49: 0.8323512994 | D49: -1.8 | E49: 0.03593031911 | F49: 0.007213759297 | G49: 7.964140044 | H49: 0.03593031911 | I49: 0.007213759297 | J49: 6.871153873 | K49: 0.06188819244 | N49: 0
A50: 29 | B50: 11.30733154 | C50: 7.307812055 | D50: -1.7 | E50: 0.04456546276 | F50: 0.008635143646 | G50: 8.009238934 | H50: 0.04456546276 | I50: 0.008635143646 | J50: 6.902786679 | K50: 0.06394715078 | N50: 0
A51: 30 | B51: 2.729910017 | C51: 4.945437829 | D51: -1.6 | E51: 0.0547992917 | F51: 0.01023382894 | G51: 8.054337825 | H51: 0.0547992917 | I51: 0.01023382894 | J51: 6.934419484 | K51: 0.06605898703 | N51: 0
A52: 31 | B52: 10.96248341 | C52: 6.720779104 | D52: -1.5 | E52: 0.06680720127 | F52: 0.01200790957 | G52: 8.099436716 | H52: 0.06680720127 | I52: 0.01200790957 | J52: 6.966052289 | K52: 0.06822445835 | N52: 0
A53: 32 | B53: 10.50912837 | C53: 6.068140706 | D53: -1.4 | E53: 0.08075665923 | F53: 0.01394945796 | G53: 8.144535607 | H53: 0.08075665923 | I53: 0.01394945796 | J53: 6.997685095 | K53: 0.07044431103 | N53: 0
A54: 33 | B54: 9.453720665 | C54: 6.179472377 | D54: -1.3 | E54: =NORMDIST(D54,0,1,1) -> 0.09680048459 | F54: 0.01604382535 | G54: 8.189634497 | H54: =NORMDIST(D54,0,1,1) -> 0.09680048459 | I54: 0.01604382535 | J54: 7.0293179 | K54: =NORMDIST(D54,C$6,C$7,C$5) -> 0.07271927952 | N54: 0
A55: 34 | B55: 10.42947977 | C55: 8.804127754 | D55: -1.2 | E55: 0.1150696702 | F55: =E55-E54 -> 0.01826918564 | G55: =B$6+(D55*B$9) -> 8.234733388 | H55: 0.1150696702 | I55: =H55-H54 -> 0.01826918564 | J55: =C$6+(D55*C$9) -> 7.060950706 | K55: 0.07505008559 | N55: 0
A56: 35 | B56: 7.626983315 | C56: 8.48821198 | D56: -1.1 | E56: 0.1356660609 | F56: 0.02059639072 | G56: 8.279832279 | H56: 0.1356660609 | I56: 0.02059639072 | J56: 7.092583511 | K56: 0.07743743733 | N56: 0
A57: 36 | B57: 11.6422647 | C57: 4.363012215 | D57: -1 | E57: 0.1586552539 | F57: 0.02298919299 | G57: 8.32493117 | H57: 0.1586552539 | I57: 0.02298919299 | J57: 7.124216317 | K57: 0.07988202828 | N57: 0
A58: 37 | B58: 7.988768536 | C58: 5.903486089 | D58: -0.9 | E58: 0.1840601253 | F58: 0.02540487142 | G58: 8.370030061 | H58: 0.1840601253 | I58: 0.02540487142 | J58: 7.155849122 | K58: 0.08238453647 | N58: 0
A59: 38 | B59: 9.999615291 | C59: 7.224203773 | D59: -0.8 | E59: 0.2118553986 | F59: 0.02779527324 | G59: 8.415128951 | H59: 0.2118553986 | I59: 0.02779527324 | J59: 7.187481928 | K59: 0.08494562348 | N59: 0
A60: 39 | B60: 8.471580964 | C60: 10.43923938 | D60: -0.7 | E60: 0.2419636522 | F60: 0.03010825364 | G60: 8.460227842 | H60: 0.2419636522 | I60: 0.03010825364 | J60: 7.219114733 | K60: 0.08756593349 | N60: 0
A61: 40 | B61: 8.498964567 | C61: 7.477212209 | D61: -0.6 | E61: 0.2742531178 | F61: 0.03228946553 | G61: 8.505326733 | H61: 0.2742531178 | I61: 0.03228946553 | J61: 7.250747539 | K61: 0.09024609238 | N61: 0
A62: 41 | C62: 11.38522738 | D62: -0.5 | E62: 0.3085375387 | F62: 0.03428442098 | G62: 8.550425624 | H62: 0.3085375387 | I62: 0.03428442098 | J62: 7.282380344 | K62: 0.09298670669 | N62: 0
A63: 42 | C63: 8.798804076 | D63: -0.4 | E63: 0.3445782584 | F63: 0.03604071966 | G63: 8.595524514 | H63: 0.3445782584 | I63: 0.03604071966 | J63: 7.31401315 | K63: 0.09578836276 | N63: 0
A64: 43 | C64: 8.841882156 | D64: -0.3 | E64: 0.3820885778 | F64: 0.03751031942 | G64: 8.640623405 | H64: 0.3820885778 | I64: 0.03751031942 | J64: 7.345645955 | K64: 0.09865162573 | N64: 0
A65: 44 | C65: 3.23186326 | D65: -0.2 | E65: 0.4207402906 | F65: 0.03865171275 | G65: 8.685722296 | H65: 0.4207402906 | I65: 0.03865171275 | J65: 7.377278761 | K65: 0.1015770386 | N65: 0
A66: 45 | C66: 6.146532077 | D66: -0.1 | E66: 0.4601721627 | F66: 0.03943187216 | G66: 8.730821187 | H66: 0.4601721627 | I66: 0.03943187216 | J66: 7.408911566 | K66: 0.1045651215 | N66: 0
A67: 46 | C67: 8.581293684 | D67: 0 | E67: 0.5 | F67: 0.03982783728 | G67: 8.775920078 | H67: 0.5 | I67: 0.03982783728 | J67: 7.440544372 | K67: 0.1076163701 | N67: 0
A68: 47 | C68: 6.415308374 | D68: 0.1 | E68: 0.5398278373 | F68: 0.03982783728 | G68: 8.821018968 | H68: 0.5398278373 | I68: 0.03982783728 | J68: 7.472177177 | K68: 0.1107312556 | N68: 0
A69: 48 | C69: 7.920151138 | D69: 0.2 | E69: 0.5792597094 | F69: 0.03943187216 | G69: 8.866117859 | H69: 0.5792597094 | I69: 0.03943187216 | J69: 7.503809983 | K69: 0.1139102232 | N69: 0
A70: 49 | C70: 5.176839457 | D70: 0.3 | E70: 0.6179114222 | F70: 0.03865171275 | G70: 8.91121675 | H70: 0.6179114222 | I70: 0.03865171275 | J70: 7.535442788 | K70: 0.1171536913 | N70: 0
A71: 50 | C71: 7.612085956 | D71: 0.4 | E71: 0.6554217416 | F71: 0.03751031942 | G71: 8.956315641 | H71: 0.6554217416 | I71: 0.03751031942 | J71: 7.567075594 | K71: 0.1204620507 | N71: 0
A72: 51 | C72: 7.318485972 | D72: 0.5 | E72: 0.6914624613 | F72: 0.03604071966 | G72: 9.001414531 | H72: 0.6914624613 | I72: 0.03604071966 | J72: 7.598708399 | K72: 0.1238356635 | N72: 0
A73: 52 | C73: 12.25079945 | D73: 0.6 | E73: 0.7257468822 | F73: 0.03428442098 | G73: 9.046513422 | H73: 0.7257468822 | I73: 0.03428442098 | J73: 7.630341205 | K73: 0.1272748626 | N73: 0
A74: 53 | C74: 7.318789834 | D74: 0.7 | E74: 0.7580363478 | F74: 0.03228946553 | G74: 9.091612313 | H74: 0.7580363478 | I74: 0.03228946553 | J74: 7.66197401 | K74: 0.1307799506 | N74: 0
A75: 54 | C75: 4.633446425 | D75: 0.8 | E75: 0.7881446014 | F75: 0.03010825364 | G75: 9.136711204 | H75: 0.7881446014 | I75: 0.03010825364 | J75: 7.693606816 | K75: 0.1343511989 | N75: 0
A76: 55 | C76: 6.231214842 | D76: 0.9 | E76: 0.8159398747 | F76: 0.02779527324 | G76: 9.181810094 | H76: 0.8159398747 | I76: 0.02779527324 | J76: 7.725239621 | K76: 0.137988847 | N76: 0
A77: 56 | C77: 5.380398664 | D77: 1 | E77: 0.8413447461 | F77: 0.02540487142 | G77: 9.226908985 | H77: 0.8413447461 | I77: 0.02540487142 | J77: 7.756872427 | K77: 0.1416931016 | N77: 0
A78: 57 | C78: 8.168851566 | D78: 1.1 | E78: 0.8643339391 | F78: 0.02298919299 | G78: 9.272007876 | H78: 0.8643339391 | I78: 0.02298919299 | J78: 7.788505232 | K78: 0.1454641362 | N78: 0
A79: 58 | C79: 6.82225296 | D79: 1.2 | E79: 0.8849303298 | F79: 0.02059639072 | G79: 9.317106767 | H79: 0.8849303298 | I79: 0.02059639072 | J79: 7.820138038 | K79: 0.1493020896 | N79: 0
A80: 59 | C80: 5.680108666 | D80: 1.3 | E80: 0.9031995154 | F80: 0.01826918564 | G80: 9.362205658 | H80: 0.9031995154 | I80: 0.01826918564 | J80: 7.851770843 | K80: 0.1532070661 | N80: 0
A81: 60 | C81: 4.785428559 | D81: 1.4 | E81: 0.9192433408 | F81: 0.01604382535 | G81: 9.407304548 | H81: 0.9192433408 | I81: 0.01604382535 | J81: 7.883403649 | K81: 0.1571791338 | N81: 0
A82: 61 | D82: 1.5 | E82: 0.9331927987 | F82: 0.01394945796 | G82: 9.452403439 | H82: 0.9331927987 | I82: 0.01394945796 | J82: 7.915036454 | K82: 0.1612183248 | N82: 0
A83: 62 | D83: 1.6 | E83: 0.9452007083 | F83: 0.01200790957 | G83: 9.49750233 | H83: 0.9452007083 | I83: 0.01200790957 | J83: 7.94666926 | K83: 0.1653246341 | N83: 0
A84: 63 | D84: 1.7 | E84: 0.9554345372 | F84: 0.01023382894 | G84: 9.542601221 | H84: 0.9554345372 | I84: 0.01023382894 | J84: 7.978302065 | K84: 0.169498019 | N84: 0
A85: 64 | D85: 1.8 | E85: 0.9640696809 | F85: 0.008635143646 | G85: 9.587700111 | H85: 0.9640696809 | I85: 0.008635143646 | J85: 8.009934871 | K85: 0.1737383987 | N85: 0
A86: 65 | D86: 1.9 | E86: =NORMDIST(D86,0,1,1) -> 0.9712834402 | F86: 0.007213759297 | G86: 9.632799002 | H86: =NORMDIST(D86,0,1,1) -> 0.9712834402 | I86: 0.007213759297 | J86: 8.041567676 | K86: =NORMDIST(D86,C$6,C$7,C$5) -> 0.1780456536 | N86: 0
A87: 66 | D87: 2 | E87: 0.9772498681 | F87: =E87-E86 -> 0.005966427868 | G87: =B$6+(D87*B$9) -> 9.677897893 | H87: 0.9772498681 | I87: =H87-H86 -> 0.005966427868 | J87: =C$6+(D87*C$9) -> 8.073200482 | K87: 0.1824196246 | N87: 0
A88: 67 | D88: 2.1 | E88: 0.9821355794 | F88: 0.004885711385 | G88: 9.722996784 | H88: 0.9821355794 | I88: 0.004885711385 | J88: 8.104833287 | K88: 0.1868601133 | N88: 0
A89: 68 | D89: 2.2 | E89: 0.9860965525 | F89: 0.003960973049 | G89: 9.768095675 | H89: 0.9860965525 | I89: 0.003960973049 | J89: 8.136466093 | K89: 0.1913668807 | N89: 0
A90: 69 | D90: 2.3 | E90: 0.98927589 | F90: 0.003179337492 | G90: 9.813194565 | H90: 0.98927589 | I90: 0.003179337492 | J90: 8.168098898 | K90: 0.1959396473 | N90: 0
A91: 70 | D91: 2.4 | E91: 0.9918024641 | F91: 0.002526574097 | G91: 9.858293456 | H91: 0.9918024641 | I91: 0.002526574097 | J91: 8.199731704 | K91: 0.2005780927 | N91: 0
A92: 71 | D92: 2.5 | E92: 0.9937903347 | F92: 0.001987870599 | G92: 9.903392347 | H92: 0.9937903347 | I92: 0.001987870599 | J92: 8.231364509 | K92: 0.2052818551 | N92: 0
A93: 72 | D93: 2.6 | E93: 0.995338812 | F93: 0.001548477302 | G93: 9.948491238 | H93: 0.995338812 | I93: 0.001548477302 | J93: 8.262997315 | K93: 0.2100505313 | N93: 0
A94: 73 | D94: 2.7 | E94: 0.9965330262 | F94: 0.001194214221 | G94: 9.993590128 | H94: 0.9965330262 | I94: 0.001194214221 | J94: 8.29463012 | K94: 0.214883676 | N94: 0
A95: 74 | D95: 2.8 | E95: 0.9974448697 | F95: 0.0009118434726 | G95: 10.03868902 | H95: 0.9974448697 | I95: 0.0009118434726 | J95: 8.326262926 | K95: 0.2197808021 | N95: 0
A96: 75 | D96: 2.9 | E96: 0.9981341867 | F96: 0.00068931703 | G96: 10.08378791 | H96: 0.9981341867 | I96: 0.00068931703 | J96: 8.357895731 | K96: 0.2247413801 | N96: 0
A97: 76 | D97: 3 | E97: 0.998650102 | F97: 0.0005159152688 | G97: 10.1288868 | H97: 0.998650102 | I97: 0.0005159152688 | J97: 8.389528537 | K97: 0.2297648385 | N97: 0
A98: 77 | D98: 3.1 | E98: 0.9990323968 | F98: 0.0003822948184 | G98: 10.17398569 | H98: 0.9990323968 | I98: 0.0003822948184 | J98: 8.421161342 | K98: 0.2348505633 | N98: 0
A99: 78 | D99: 3.2 | E99: 0.9993128621 | F99: 0.0002804652753 | G99: 10.21908458 | H99: 0.9993128621 | I99: 0.0002804652753 | J99: 8.452794148 | K99: 0.2399978981 | N99: 0
A100: 79 | D100: 3.3 | E100: 0.9995165759 | F100: 0.0002037137955 | G100: 10.26418347 | H100: 0.9995165759 | I100: 0.0002037137955 | J100: 8.484426953 | K100: 0.2452061441 | N100: 0
A101: 80 | D101: 3.4 | E101: 0.9996630707 | F101: 0.0001464948767 | G101: 10.30928236 | H101: 0.9996630707 | I101: 0.0001464948767 | J101: 8.516059759 | K101: 0.2504745604 | N101: 0
A102: 81 | D102: 3.5 | E102: 0.9997673709 | F102: 0.0001043001866 | G102: 10.35438125 | H102: 0.9997673709 | I102: 0.0001043001866 | J102: 8.547692564 | K102: 0.255802364 | N102: 0
A103: 82 | D103: 3.6 | E103: 0.9998408914 | F103: 7.352048888e-05 | G103: 10.39948015 | H103: 0.9998408914 | I103: 7.352048888e-05 | J103: 8.57932537 | K103: 0.2611887297 | N103: 0
A104: 83 | D104: 3.7 | E104: 0.9998922003 | F104: 5.130885668e-05 | G104: 10.44457904 | H104: 0.9998922003 | I104: 5.130885668e-05 | J104: 8.610958175 | K104: 0.2666327907 | N104: 0
A105: 84 | D105: 3.8 | E105: 0.999927652 | F105: 3.545168955e-05 | G105: 10.48967793 | H105: 0.999927652 | I105: 3.545168955e-05 | J105: 8.642590981 | K105: 0.2721336389 | N105: 0
A106: 85 | D106: 3.9 | E106: 0.9999519037 | F106: 2.425169991e-05 | G106: 10.53477682 | H106: 0.9999519037 | I106: 2.425169991e-05 | J106: 8.674223786 | K106: 0.2776903247 | N106: 0
A107: 86 | D107: 4 | E107: 0.9999683288 | F107: 1.642510218e-05 | G107: 10.57987571 | H107: 0.9999683288 | I107: 1.642510218e-05 | J107: 8.705856592 | K107: 0.2833018581 | N107: 0
A108: 87 | N108: 0
A109: 88 | N109: 0
A110: 89 | N110: 0
A111: 90 | N111: 0
A112: 91 | N112: 0
A113: 92 | N113: 0
A114: 93 | N114: 0
A115: 94 | N115: 0
A116: 95 | N116: 0
A117: 96 | N117: 0
A118: 97 | N118: 0
A119: 98 | N119: 0
A120: 99 | N120: 0
A121: 100 | N121: 0

Sheet UnivarReg Ex
A1: Example: Television Ratings Regression
A2: This is the television ratings regression example shown on page 156-160 of How to Measure Anything. It shows how simple Excel formulas compare to Excel's regression wizard (see below). These simple Excel formulas only work for situations where we are correlating a single variable to another. The regression wizard, however, can work for multiple variables (as explained in the example in the book).
A3: Excel Formulas for Simple (one variable) regression
A4: Correlation of ratings to promotion period | E4: =CORREL(B13:B40,A13:A40) -> 0.7029521366
A5: Slope: Additional ratings points for one extra week of promotion | E5: =SLOPE(B13:B40,A13:A40) -> 0.2154534027
A6: Intercept: Estimated ratings points if no time was spent on promotion | E6: =INTERCEPT(B13:B40,A13:A40) -> 0.8773311443
A7: Enter X to estimate Y | E7: 3
A8: Upper bound of y estimate | E8: =E9+1.645*STEYX(B13:B40,A13:A40) -> 2.417092834
A9: Mean of y estimate | E9: =E7*E5+E6 -> 1.523691353
A10: Lower bound of y estimate | E10: =E9-1.645*STEYX(B13:B40,A13:A40) -> 0.6302898709
A12: Duration of Promotion Period (weeks) | B12: Ratings Points | C12: Model
A13: 2.479990725 | B13: 0.3 | C13: =$E$6+$E$5*A13 -> 1.411653585
A14: 0.7 | B14: 1.29 | C14: =$E$6+$E$5*A14 -> 1.028148526
A15: 1.2 | B15: 0.99 | C15: 1.135875228
A16: 0.5 | B16: 0.9 | C16: 0.9850578457
A17: 3.240930765 | B17: 1.567859933 | C17: 1.575600706
A18: 2 | B18: 1.319312876 | C18: 1.30823795
A19: 3.665088576 | B19: 1.854076593 | C19: 1.666986949
A20: 0.5 | B20: 0.3 | C20: 0.9850578457
A21: 4.058643403 | B21: 2.204652728 | C21: 1.751779676
A22: 2.5 | B22: 2.122972017 | C22: 1.415964651
A23: 4.355256057 | B23: 1.2 | C23: 1.815685882
A24: 4.901547932 | B24: 2.142248116 | C24: 1.933386325
A25: 3 | B25: 2.52 | C25: 1.523691353
A26: 5.134729439 | B26: 1.840345268 | C26: 1.983626074
A27: 5.182378325 | B27: 2.340801958 | C27: 1.993892189
A28: 5.578207454 | B28: 2.540265518 | C28: 2.079174921
A29: 5.600804127 | B29: 2.382573694 | C29: 2.084043451
A30: 5.914815572 | B30: 1.912173492 | C30: 2.151698286
A31: 6.080531006 | B31: 1.549695407 | C31: 2.18740224
A32: 6.184066765 | B32: 2.609787849 | C32: 2.209709372
A33: 8 | B33: 2.1 | C33: 2.600958366
A34: 6.383876835 | B34: 2.453833376 | C34: 2.252759131
A35: 6.577268807 | B35: 3.3 | C35: 2.294426089
A36: 6.649277051 | B36: 1.32 | C36: 2.309940511
A37: 6.661094995 | B37: 1.8 | C37: 2.312486727
A38: 7.052135248 | B38: 2.4 | C38: 2.39673768
A39: 8.753288849 | B39: 3.042675876 | C39: 2.763257012
A40: 9.137497773 | B40: 2.7 | C40: 2.846036132

Sheet MultivarReg Ws
A1: Worksheet: Multivariate Regression Using Linest (10,000 Row Max)
A2: Excel's regression wizard can be used for multivariate regression models, but there is a simpler, dynamic way that doesn't require any add-ins. This example shows how the LINEST() function in Excel allows you to build a dynamic regression model with a single dependent variable and multiple independent variables. Independent variables can be included or excluded on the fly to see how the model changes. Input your data in the yellow cells below and select or deselect independent variables by entering a 1 or 0 in row 4. The current formulas are made for data up to 10,000 rows long. If you require more rows, you will need to change range references in all formulas. | K2: The LINEST() function outputs coefficients for each independent variable, but note that the order of variables is reversed from the input. Headers here are dynamic and are linked to the input headers in columns C:H. Linest can also output regression statistics, just like the regression wizard in the analysis toolpak. Two charts are shown below. The first shows both the actual and estimated depdendent variables on the same axis (defined in column A) for direct comparison. The second shows the actual values VS the estimates, so you can see how the fit more clearly. | T2: This table uses the "include" flags to include or exclude an independent variable from the regression calculation. If a flag is turned off, the values below that variable will default to 0. it also contains a dynamic table using the offsett function that alows the user to choose how many rows to include in the regression. The user can also find the calculation for computing the 90% confidence interval for the model.
A3: Horizontal axis for Chart 1 | B3: Dependent Variable | C3: Independent variable selection (MAX 10,000 rows) | L3: Linest Output | T3: Std error | U3: =IFERROR(STEYX(I:I, B:B),"") ->  | V3: 90% interval | W3: 1.645 | X3: Error Bound | Y3: =IFERROR(U3*W3,"") ->  | Z3: Min Y | AA3: Max Y | AB3: Number of steps for error bounds | AC3: Step for error bounds
C4: 1 | D4: 1 | E4: 1 | F4: 1 | G4: 1 | H4: 1 | L4: 0 | M4: 1 | N4: 2 | O4: 3 | P4: 4 | Q4: 5 | T4: Number of Rows | U4: =COUNT(B:B) -> 0 | V4: Max row count is 10,000 | Z4: =MIN($B:$B) -> 0 | AA4: =MAX(B:B) -> 0 | AB4: 78 | AC4: =(AA4-Z4)/AB4 -> 0
A5: Optional Identifier | B5: Y | C5: X1 | D5: X2 | E5: X3 | F5: X4 | G5: X5 | H5: X6 | I5: Computed Est. | L5: =INDEX($C$5:$H$5, 1,COUNTA($C$5:$H$5)-L4) -> X6 | M5: =INDEX($C$5:$H$5, 1,COUNTA($C$5:$H$5)-M4) -> X5 | N5: =INDEX($C$5:$H$5, 1,COUNTA($C$5:$H$5)-N4) -> X4 | O5: =INDEX($C$5:$H$5, 1,COUNTA($C$5:$H$5)-O4) -> X3 | P5: =INDEX($C$5:$H$5, 1,COUNTA($C$5:$H$5)-P4) -> X2 | Q5: =INDEX($C$5:$H$5, 1,COUNTA($C$5:$H$5)-Q4) -> X1 | R5: Intercept | T5: Google Trends: Unemployment | U5: Google Trends: Work | V5: Google Trends: Jobs | W5: Google Trends: Labor | X5: Google Trends: Employment | Y5: Google Trends: Job Openings | AA5: X values for error bounds on chart 2 | AB5: P .05 | AC5: P .95
I6: =IFERROR(IF(ISBLANK(B6), "", T6*Q$6+U6*P$6+V6*O$6+W6*N$6+X6*M$6+Y6*L$6+R$6),"") ->  | K6: Coefficient | L6: =IFERROR(LINEST(OFFSET(B5,1,0,$U$4,1),OFFSET( T5,1,0,$U$4,6), TRUE, TRUE),"") ->  | T6: =IF(C$4, C6, 0) -> 0 | U6: =IF(D$4, D6, 0) -> 0 | V6: 0 | W6: 0 | X6: 0 | Y6: 0 | AA6: =Z4 -> 0 | AB6: =IFERROR(AA6-$Y$3,"") ->  | AC6: =IFERROR(AA6+$Y$3,"") -> 
I7: =IFERROR(IF(ISBLANK(B7), "", T7*Q$6+U7*P$6+V7*O$6+W7*N$6+X7*M$6+Y7*L$6+R$6),"") ->  | K7: Std Err | T7: 0 | U7: 0 | V7: 0 | W7: 0 | X7: 0 | Y7: 0 | AA7: =AA6+$AC$4 -> 0 | AB7: =IFERROR(AA7-$Y$3,"") ->  | AC7: =IFERROR(AA7+$Y$3,"") -> 
K8: r^2, Std Err Y | T8: 0 | U8: 0 | V8: 0 | W8: 0 | X8: 0 | Y8: 0 | AA8: =AA7+$AC$4 -> 0 | AB8: =IFERROR(AA8-$Y$3,"") ->  | AC8: =IFERROR(AA8+$Y$3,"") -> 
K9: F, d_f | T9: 0 | U9: 0 | V9: 0 | W9: 0 | X9: 0 | Y9: 0 | AA9: =AA8+$AC$4 -> 0 | AB9: =IFERROR(AA9-$Y$3,"") ->  | AC9: =IFERROR(AA9+$Y$3,"") -> 
K10: ss_reg, ss_resid | T10: 0 | U10: 0 | V10: 0 | W10: 0 | X10: 0 | Y10: 0 | AA10: =AA9+$AC$4 -> 0 | AB10: =IFERROR(AA10-$Y$3,"") ->  | AC10: =IFERROR(AA10+$Y$3,"") -> 
T11: 0 | U11: 0 | V11: 0 | W11: 0 | X11: 0 | Y11: 0 | AA11: =AA10+$AC$4 -> 0 | AB11: =IFERROR(AA11-$Y$3,"") ->  | AC11: =IFERROR(AA11+$Y$3,"") -> 
T12: 0 | U12: 0 | V12: 0 | W12: 0 | X12: 0 | Y12: 0 | AA12: =AA11+$AC$4 -> 0 | AB12: =IFERROR(AA12-$Y$3,"") ->  | AC12: =IFERROR(AA12+$Y$3,"") -> 
T13: 0 | U13: 0 | V13: 0 | W13: 0 | X13: 0 | Y13: 0 | AA13: =AA12+$AC$4 -> 0 | AB13: =IFERROR(AA13-$Y$3,"") ->  | AC13: =IFERROR(AA13+$Y$3,"") -> 
T14: 0 | U14: 0 | V14: 0 | W14: 0 | X14: 0 | Y14: 0 | AA14: =AA13+$AC$4 -> 0 | AB14: =IFERROR(AA14-$Y$3,"") ->  | AC14: =IFERROR(AA14+$Y$3,"") -> 
T15: 0 | U15: 0 | V15: 0 | W15: 0 | X15: 0 | Y15: 0 | AA15: =AA14+$AC$4 -> 0 | AB15: =IFERROR(AA15-$Y$3,"") ->  | AC15: =IFERROR(AA15+$Y$3,"") -> 
T16: 0 | U16: 0 | V16: 0 | W16: 0 | X16: 0 | Y16: 0 | AA16: =AA15+$AC$4 -> 0 | AB16: =IFERROR(AA16-$Y$3,"") ->  | AC16: =IFERROR(AA16+$Y$3,"") -> 
T17: 0 | U17: 0 | V17: 0 | W17: 0 | X17: 0 | Y17: 0 | AA17: =AA16+$AC$4 -> 0 | AB17: =IFERROR(AA17-$Y$3,"") ->  | AC17: =IFERROR(AA17+$Y$3,"") -> 
T18: 0 | U18: 0 | V18: 0 | W18: 0 | X18: 0 | Y18: 0 | AA18: =AA17+$AC$4 -> 0 | AB18: =IFERROR(AA18-$Y$3,"") ->  | AC18: =IFERROR(AA18+$Y$3,"") -> 
T19: 0 | U19: 0 | V19: 0 | W19: 0 | X19: 0 | Y19: 0 | AA19: =AA18+$AC$4 -> 0 | AB19: =IFERROR(AA19-$Y$3,"") ->  | AC19: =IFERROR(AA19+$Y$3,"") -> 
T20: 0 | U20: 0 | V20: 0 | W20: 0 | X20: 0 | Y20: 0 | AA20: =AA19+$AC$4 -> 0 | AB20: =IFERROR(AA20-$Y$3,"") ->  | AC20: =IFERROR(AA20+$Y$3,"") -> 
T21: 0 | U21: 0 | V21: 0 | W21: 0 | X21: 0 | Y21: 0 | AA21: =AA20+$AC$4 -> 0 | AB21: =IFERROR(AA21-$Y$3,"") ->  | AC21: =IFERROR(AA21+$Y$3,"") -> 
T22: 0 | U22: 0 | V22: 0 | W22: 0 | X22: 0 | Y22: 0 | AA22: =AA21+$AC$4 -> 0 | AB22: =IFERROR(AA22-$Y$3,"") ->  | AC22: =IFERROR(AA22+$Y$3,"") -> 
T23: 0 | U23: 0 | V23: 0 | W23: 0 | X23: 0 | Y23: 0 | AA23: =AA22+$AC$4 -> 0 | AB23: =IFERROR(AA23-$Y$3,"") ->  | AC23: =IFERROR(AA23+$Y$3,"") -> 
T24: 0 | U24: 0 | V24: 0 | W24: 0 | X24: 0 | Y24: 0 | AA24: =AA23+$AC$4 -> 0 | AB24: =IFERROR(AA24-$Y$3,"") ->  | AC24: =IFERROR(AA24+$Y$3,"") -> 
T25: 0 | U25: 0 | V25: 0 | W25: 0 | X25: 0 | Y25: 0 | AA25: =AA24+$AC$4 -> 0 | AB25: =IFERROR(AA25-$Y$3,"") ->  | AC25: =IFERROR(AA25+$Y$3,"") -> 
T26: 0 | U26: 0 | V26: 0 | W26: 0 | X26: 0 | Y26: 0 | AA26: =AA25+$AC$4 -> 0 | AB26: =IFERROR(AA26-$Y$3,"") ->  | AC26: =IFERROR(AA26+$Y$3,"") -> 
T27: 0 | U27: 0 | V27: 0 | W27: 0 | X27: 0 | Y27: 0 | AA27: =AA26+$AC$4 -> 0 | AB27: =IFERROR(AA27-$Y$3,"") ->  | AC27: =IFERROR(AA27+$Y$3,"") -> 
T28: 0 | U28: 0 | V28: 0 | W28: 0 | X28: 0 | Y28: 0 | AA28: =AA27+$AC$4 -> 0 | AB28: =IFERROR(AA28-$Y$3,"") ->  | AC28: =IFERROR(AA28+$Y$3,"") -> 
T29: 0 | U29: 0 | V29: 0 | W29: 0 | X29: 0 | Y29: 0 | AA29: =AA28+$AC$4 -> 0 | AB29: =IFERROR(AA29-$Y$3,"") ->  | AC29: =IFERROR(AA29+$Y$3,"") -> 
T30: 0 | U30: 0 | V30: 0 | W30: 0 | X30: 0 | Y30: 0 | AA30: =AA29+$AC$4 -> 0 | AB30: =IFERROR(AA30-$Y$3,"") ->  | AC30: =IFERROR(AA30+$Y$3,"") -> 
T31: 0 | U31: 0 | V31: 0 | W31: 0 | X31: 0 | Y31: 0 | AA31: =AA30+$AC$4 -> 0 | AB31: =IFERROR(AA31-$Y$3,"") ->  | AC31: =IFERROR(AA31+$Y$3,"") -> 
T32: 0 | U32: 0 | V32: 0 | W32: 0 | X32: 0 | Y32: 0 | AA32: =AA31+$AC$4 -> 0 | AB32: =IFERROR(AA32-$Y$3,"") ->  | AC32: =IFERROR(AA32+$Y$3,"") -> 
T33: 0 | U33: 0 | V33: 0 | W33: 0 | X33: 0 | Y33: 0 | AA33: =AA32+$AC$4 -> 0 | AB33: =IFERROR(AA33-$Y$3,"") ->  | AC33: =IFERROR(AA33+$Y$3,"") -> 
T34: 0 | U34: 0 | V34: 0 | W34: 0 | X34: 0 | Y34: 0 | AA34: =AA33+$AC$4 -> 0 | AB34: =IFERROR(AA34-$Y$3,"") ->  | AC34: =IFERROR(AA34+$Y$3,"") -> 
T35: 0 | U35: 0 | V35: 0 | W35: 0 | X35: 0 | Y35: 0 | AA35: =AA34+$AC$4 -> 0 | AB35: =IFERROR(AA35-$Y$3,"") ->  | AC35: =IFERROR(AA35+$Y$3,"") -> 
T36: 0 | U36: 0 | V36: 0 | W36: 0 | X36: 0 | Y36: 0 | AA36: =AA35+$AC$4 -> 0 | AB36: =IFERROR(AA36-$Y$3,"") ->  | AC36: =IFERROR(AA36+$Y$3,"") -> 
T37: 0 | U37: 0 | V37: 0 | W37: 0 | X37: 0 | Y37: 0 | AA37: =AA36+$AC$4 -> 0 | AB37: =IFERROR(AA37-$Y$3,"") ->  | AC37: =IFERROR(AA37+$Y$3,"") -> 
T38: 0 | U38: 0 | V38: 0 | W38: 0 | X38: 0 | Y38: 0 | AA38: =AA37+$AC$4 -> 0 | AB38: =IFERROR(AA38-$Y$3,"") ->  | AC38: =IFERROR(AA38+$Y$3,"") -> 
T39: 0 | U39: 0 | V39: 0 | W39: 0 | X39: 0 | Y39: 0 | AA39: =AA38+$AC$4 -> 0 | AB39: =IFERROR(AA39-$Y$3,"") ->  | AC39: =IFERROR(AA39+$Y$3,"") -> 
T40: 0 | U40: 0 | V40: 0 | W40: 0 | X40: 0 | Y40: 0 | AA40: =AA39+$AC$4 -> 0 | AB40: =IFERROR(AA40-$Y$3,"") ->  | AC40: =IFERROR(AA40+$Y$3,"") -> 
T41: 0 | U41: 0 | V41: 0 | W41: 0 | X41: 0 | Y41: 0 | AA41: =AA40+$AC$4 -> 0 | AB41: =IFERROR(AA41-$Y$3,"") ->  | AC41: =IFERROR(AA41+$Y$3,"") -> 
T42: 0 | U42: 0 | V42: 0 | W42: 0 | X42: 0 | Y42: 0 | AA42: =AA41+$AC$4 -> 0 | AB42: =IFERROR(AA42-$Y$3,"") ->  | AC42: =IFERROR(AA42+$Y$3,"") -> 
T43: 0 | U43: 0 | V43: 0 | W43: 0 | X43: 0 | Y43: 0 | AA43: =AA42+$AC$4 -> 0 | AB43: =IFERROR(AA43-$Y$3,"") ->  | AC43: =IFERROR(AA43+$Y$3,"") -> 
T44: 0 | U44: 0 | V44: 0 | W44: 0 | X44: 0 | Y44: 0 | AA44: =AA43+$AC$4 -> 0 | AB44: =IFERROR(AA44-$Y$3,"") ->  | AC44: =IFERROR(AA44+$Y$3,"") -> 
T45: 0 | U45: 0 | V45: 0 | W45: 0 | X45: 0 | Y45: 0 | AA45: =AA44+$AC$4 -> 0 | AB45: =IFERROR(AA45-$Y$3,"") ->  | AC45: =IFERROR(AA45+$Y$3,"") -> 
T46: 0 | U46: 0 | V46: 0 | W46: 0 | X46: 0 | Y46: 0 | AA46: =AA45+$AC$4 -> 0 | AB46: =IFERROR(AA46-$Y$3,"") ->  | AC46: =IFERROR(AA46+$Y$3,"") -> 
T47: 0 | U47: 0 | V47: 0 | W47: 0 | X47: 0 | Y47: 0 | AA47: =AA46+$AC$4 -> 0 | AB47: =IFERROR(AA47-$Y$3,"") ->  | AC47: =IFERROR(AA47+$Y$3,"") -> 
T48: 0 | U48: 0 | V48: 0 | W48: =IF(F$4, F48, 0) -> 0 | X48: 0 | Y48: 0 | AA48: =AA47+$AC$4 -> 0 | AB48: =IFERROR(AA48-$Y$3,"") ->  | AC48: =IFERROR(AA48+$Y$3,"") -> 
T49: =IF(C$4, C49, 0) -> 0 | U49: 0 | V49: 0 | W49: 0 | X49: 0 | Y49: 0 | AA49: =AA48+$AC$4 -> 0 | AB49: =IFERROR(AA49-$Y$3,"") ->  | AC49: =IFERROR(AA49+$Y$3,"") -> 
T50: 0 | U50: 0 | V50: 0 | W50: 0 | X50: 0 | Y50: 0 | AA50: =AA49+$AC$4 -> 0 | AB50: =IFERROR(AA50-$Y$3,"") ->  | AC50: =IFERROR(AA50+$Y$3,"") -> 
T51: 0 | U51: 0 | V51: 0 | W51: 0 | X51: 0 | Y51: 0 | AA51: =AA50+$AC$4 -> 0 | AB51: =IFERROR(AA51-$Y$3,"") ->  | AC51: =IFERROR(AA51+$Y$3,"") -> 
T52: 0 | U52: 0 | V52: 0 | W52: 0 | X52: 0 | Y52: 0 | AA52: =AA51+$AC$4 -> 0 | AB52: =IFERROR(AA52-$Y$3,"") ->  | AC52: =IFERROR(AA52+$Y$3,"") -> 
T53: 0 | U53: 0 | V53: 0 | W53: 0 | X53: 0 | Y53: 0 | AA53: =AA52+$AC$4 -> 0 | AB53: =IFERROR(AA53-$Y$3,"") ->  | AC53: =IFERROR(AA53+$Y$3,"") -> 
T54: =IF(C$4, C54, 0) -> 0 | U54: =IF(D$4, D54, 0) -> 0 | V54: =IF(E$4, E54, 0) -> 0 | W54: =IF(F$4, F54, 0) -> 0 | X54: =IF(G$4, G54, 0) -> 0 | Y54: =IF(H$4, H54, 0) -> 0 | AA54: =AA53+$AC$4 -> 0 | AB54: =IFERROR(AA54-$Y$3,"") ->  | AC54: =IFERROR(AA54+$Y$3,"") -> 
T55: 0 | U55: 0 | V55: 0 | W55: 0 | X55: 0 | Y55: 0 | AA55: =AA54+$AC$4 -> 0 | AB55: =IFERROR(AA55-$Y$3,"") ->  | AC55: =IFERROR(AA55+$Y$3,"") -> 
T56: 0 | U56: 0 | V56: 0 | W56: 0 | X56: 0 | Y56: 0 | AA56: =AA55+$AC$4 -> 0 | AB56: =IFERROR(AA56-$Y$3,"") ->  | AC56: =IFERROR(AA56+$Y$3,"") -> 
T57: 0 | U57: 0 | V57: 0 | W57: 0 | X57: 0 | Y57: 0 | AA57: =AA56+$AC$4 -> 0 | AB57: =IFERROR(AA57-$Y$3,"") ->  | AC57: =IFERROR(AA57+$Y$3,"") -> 
T58: 0 | U58: 0 | V58: 0 | W58: 0 | X58: 0 | Y58: 0 | AA58: =AA57+$AC$4 -> 0 | AB58: =IFERROR(AA58-$Y$3,"") ->  | AC58: =IFERROR(AA58+$Y$3,"") -> 
T59: 0 | U59: 0 | V59: 0 | W59: 0 | X59: 0 | Y59: 0 | AA59: =AA58+$AC$4 -> 0 | AB59: =IFERROR(AA59-$Y$3,"") ->  | AC59: =IFERROR(AA59+$Y$3,"") -> 
T60: 0 | U60: 0 | V60: 0 | W60: 0 | X60: 0 | Y60: 0 | AA60: =AA59+$AC$4 -> 0 | AB60: =IFERROR(AA60-$Y$3,"") ->  | AC60: =IFERROR(AA60+$Y$3,"") -> 
T61: 0 | U61: 0 | V61: 0 | W61: 0 | X61: 0 | Y61: 0 | AA61: =AA60+$AC$4 -> 0 | AB61: =IFERROR(AA61-$Y$3,"") ->  | AC61: =IFERROR(AA61+$Y$3,"") -> 
T62: 0 | U62: 0 | V62: 0 | W62: 0 | X62: 0 | Y62: 0 | AA62: =AA61+$AC$4 -> 0 | AB62: =IFERROR(AA62-$Y$3,"") ->  | AC62: =IFERROR(AA62+$Y$3,"") -> 
T63: 0 | U63: 0 | V63: 0 | W63: 0 | X63: 0 | Y63: 0 | AA63: =AA62+$AC$4 -> 0 | AB63: =IFERROR(AA63-$Y$3,"") ->  | AC63: =IFERROR(AA63+$Y$3,"") -> 
T64: 0 | U64: 0 | V64: 0 | W64: 0 | X64: 0 | Y64: 0 | AA64: =AA63+$AC$4 -> 0 | AB64: =IFERROR(AA64-$Y$3,"") ->  | AC64: =IFERROR(AA64+$Y$3,"") -> 
T65: 0 | U65: 0 | V65: 0 | W65: 0 | X65: 0 | Y65: 0 | AA65: =AA64+$AC$4 -> 0 | AB65: =IFERROR(AA65-$Y$3,"") ->  | AC65: =IFERROR(AA65+$Y$3,"") -> 
T66: 0 | U66: 0 | V66: 0 | W66: 0 | X66: 0 | Y66: 0 | AA66: =AA65+$AC$4 -> 0 | AB66: =IFERROR(AA66-$Y$3,"") ->  | AC66: =IFERROR(AA66+$Y$3,"") -> 
T67: 0 | U67: 0 | V67: 0 | W67: 0 | X67: 0 | Y67: 0 | AA67: =AA66+$AC$4 -> 0 | AB67: =IFERROR(AA67-$Y$3,"") ->  | AC67: =IFERROR(AA67+$Y$3,"") -> 
T68: 0 | U68: 0 | V68: 0 | W68: 0 | X68: 0 | Y68: 0 | AA68: =AA67+$AC$4 -> 0 | AB68: =IFERROR(AA68-$Y$3,"") ->  | AC68: =IFERROR(AA68+$Y$3,"") -> 
T69: 0 | U69: 0 | V69: 0 | W69: 0 | X69: 0 | Y69: 0 | AA69: =AA68+$AC$4 -> 0 | AB69: =IFERROR(AA69-$Y$3,"") ->  | AC69: =IFERROR(AA69+$Y$3,"") -> 
T70: 0 | U70: 0 | V70: 0 | W70: 0 | X70: 0 | Y70: 0 | AA70: =AA69+$AC$4 -> 0 | AB70: =IFERROR(AA70-$Y$3,"") ->  | AC70: =IFERROR(AA70+$Y$3,"") -> 
I71: =IFERROR(IF(ISBLANK(B71), "", T71*Q$6+U71*P$6+V71*O$6+W71*N$6+X71*M$6+Y71*L$6+R$6),"") ->  | T71: 0 | U71: 0 | V71: 0 | W71: 0 | X71: 0 | Y71: 0 | AA71: =AA70+$AC$4 -> 0 | AB71: =IFERROR(AA71-$Y$3,"") ->  | AC71: =IFERROR(AA71+$Y$3,"") -> 
T72: 0 | U72: 0 | V72: 0 | W72: 0 | X72: 0 | Y72: 0 | AA72: =AA71+$AC$4 -> 0 | AB72: =IFERROR(AA72-$Y$3,"") ->  | AC72: =IFERROR(AA72+$Y$3,"") -> 
T73: 0 | U73: 0 | V73: 0 | W73: 0 | X73: 0 | Y73: 0 | AA73: =AA72+$AC$4 -> 0 | AB73: =IFERROR(AA73-$Y$3,"") ->  | AC73: =IFERROR(AA73+$Y$3,"") -> 
T74: 0 | U74: 0 | V74: 0 | W74: 0 | X74: 0 | Y74: 0 | AA74: =AA73+$AC$4 -> 0 | AB74: =IFERROR(AA74-$Y$3,"") ->  | AC74: =IFERROR(AA74+$Y$3,"") -> 
T75: 0 | U75: 0 | V75: 0 | W75: 0 | X75: 0 | Y75: 0 | AA75: =AA74+$AC$4 -> 0 | AB75: =IFERROR(AA75-$Y$3,"") ->  | AC75: =IFERROR(AA75+$Y$3,"") -> 
T76: 0 | U76: 0 | V76: 0 | W76: 0 | X76: 0 | Y76: 0 | AA76: =AA75+$AC$4 -> 0 | AB76: =IFERROR(AA76-$Y$3,"") ->  | AC76: =IFERROR(AA76+$Y$3,"") -> 
T77: 0 | U77: 0 | V77: 0 | W77: 0 | X77: 0 | Y77: 0 | AA77: =AA76+$AC$4 -> 0 | AB77: =IFERROR(AA77-$Y$3,"") ->  | AC77: =IFERROR(AA77+$Y$3,"") -> 
T78: 0 | U78: 0 | V78: 0 | W78: 0 | X78: 0 | Y78: 0 | AA78: =AA77+$AC$4 -> 0 | AB78: =IFERROR(AA78-$Y$3,"") ->  | AC78: =IFERROR(AA78+$Y$3,"") -> 
T79: 0 | U79: 0 | V79: 0 | W79: 0 | X79: 0 | Y79: 0 | AA79: =AA78+$AC$4 -> 0 | AB79: =IFERROR(AA79-$Y$3,"") ->  | AC79: =IFERROR(AA79+$Y$3,"") -> 
T80: 0 | U80: 0 | V80: 0 | W80: 0 | X80: 0 | Y80: 0 | AA80: =AA79+$AC$4 -> 0 | AB80: =IFERROR(AA80-$Y$3,"") ->  | AC80: =IFERROR(AA80+$Y$3,"") -> 
T81: 0 | U81: 0 | V81: 0 | W81: 0 | X81: 0 | Y81: 0 | AA81: =AA80+$AC$4 -> 0 | AB81: =IFERROR(AA81-$Y$3,"") ->  | AC81: =IFERROR(AA81+$Y$3,"") -> 
T82: 0 | U82: 0 | V82: 0 | W82: 0 | X82: 0 | Y82: 0 | AA82: =AA81+$AC$4 -> 0 | AB82: =IFERROR(AA82-$Y$3,"") ->  | AC82: =IFERROR(AA82+$Y$3,"") -> 
T83: 0 | U83: 0 | V83: 0 | W83: 0 | X83: 0 | Y83: 0 | AA83: =AA82+$AC$4 -> 0 | AB83: =IFERROR(AA83-$Y$3,"") ->  | AC83: =IFERROR(AA83+$Y$3,"") -> 
T84: 0 | U84: 0 | V84: 0 | W84: 0 | X84: 0 | Y84: 0 | AA84: =AA83+$AC$4 -> 0 | AB84: =IFERROR(AA84-$Y$3,"") ->  | AC84: =IFERROR(AA84+$Y$3,"") -> 
T85: 0 | U85: 0 | V85: 0 | W85: 0 | X85: 0 | Y85: 0 | AA85: =AA84+$AC$4 -> 0 | AB85: =IFERROR(AA85-$Y$3,"") ->  | AC85: =IFERROR(AA85+$Y$3,"") -> 
T86: 0 | U86: 0 | V86: 0 | W86: 0 | X86: 0 | Y86: 0 | AA86: =AA85+$AC$4 -> 0 | AB86: =IFERROR(AA86-$Y$3,"") ->  | AC86: =IFERROR(AA86+$Y$3,"") -> 
T87: 0 | U87: 0 | V87: 0 | W87: 0 | X87: 0 | Y87: 0 | AA87: =AA86+$AC$4 -> 0 | AB87: =IFERROR(AA87-$Y$3,"") ->  | AC87: =IFERROR(AA87+$Y$3,"") -> 
T88: 0 | U88: 0 | V88: 0 | W88: 0 | X88: 0 | Y88: 0 | AA88: =AA87+$AC$4 -> 0 | AB88: =IFERROR(AA88-$Y$3,"") ->  | AC88: =IFERROR(AA88+$Y$3,"") -> 
T89: 0 | U89: 0 | V89: 0 | W89: 0 | X89: 0 | Y89: 0 | AA89: =AA88+$AC$4 -> 0 | AB89: =IFERROR(AA89-$Y$3,"") ->  | AC89: =IFERROR(AA89+$Y$3,"") -> 
T90: 0 | U90: 0 | V90: 0 | W90: 0 | X90: 0 | Y90: 0 | AA90: =AA89+$AC$4 -> 0 | AB90: =IFERROR(AA90-$Y$3,"") ->  | AC90: =IFERROR(AA90+$Y$3,"") -> 
T91: 0 | U91: 0 | V91: 0 | W91: 0 | X91: 0 | Y91: 0 | AA91: =AA90+$AC$4 -> 0 | AB91: =IFERROR(AA91-$Y$3,"") ->  | AC91: =IFERROR(AA91+$Y$3,"") -> 
T92: 0 | U92: 0 | V92: 0 | W92: 0 | X92: 0 | Y92: 0 | AA92: =AA91+$AC$4 -> 0 | AB92: =IFERROR(AA92-$Y$3,"") ->  | AC92: =IFERROR(AA92+$Y$3,"") -> 
T93: 0 | U93: 0 | V93: 0 | W93: 0 | X93: 0 | Y93: 0 | AA93: =AA92+$AC$4 -> 0 | AB93: =IFERROR(AA93-$Y$3,"") ->  | AC93: =IFERROR(AA93+$Y$3,"") -> 
T94: 0 | U94: 0 | V94: 0 | W94: 0 | X94: 0 | Y94: 0 | AA94: =AA93+$AC$4 -> 0 | AB94: =IFERROR(AA94-$Y$3,"") ->  | AC94: =IFERROR(AA94+$Y$3,"") -> 
T95: 0 | U95: 0 | V95: 0 | W95: 0 | X95: 0 | Y95: 0 | AA95: =AA94+$AC$4 -> 0 | AB95: =IFERROR(AA95-$Y$3,"") ->  | AC95: =IFERROR(AA95+$Y$3,"") -> 
T96: 0 | U96: 0 | V96: 0 | W96: 0 | X96: 0 | Y96: 0 | AA96: =AA95+$AC$4 -> 0 | AB96: =IFERROR(AA96-$Y$3,"") ->  | AC96: =IFERROR(AA96+$Y$3,"") -> 
T97: 0 | U97: 0 | V97: 0 | W97: 0 | X97: 0 | Y97: 0 | AA97: =AA96+$AC$4 -> 0 | AB97: =IFERROR(AA97-$Y$3,"") ->  | AC97: =IFERROR(AA97+$Y$3,"") -> 
T98: 0 | U98: 0 | V98: 0 | W98: 0 | X98: 0 | Y98: 0 | AA98: =AA97+$AC$4 -> 0 | AB98: =IFERROR(AA98-$Y$3,"") ->  | AC98: =IFERROR(AA98+$Y$3,"") -> 
T99: 0 | U99: 0 | V99: 0 | W99: 0 | X99: 0 | Y99: 0 | AA99: =AA98+$AC$4 -> 0 | AB99: =IFERROR(AA99-$Y$3,"") ->  | AC99: =IFERROR(AA99+$Y$3,"") -> 
T100: 0 | U100: 0 | V100: 0 | W100: 0 | X100: 0 | Y100: 0 | AA100: =AA99+$AC$4 -> 0 | AB100: =IFERROR(AA100-$Y$3,"") ->  | AC100: =IFERROR(AA100+$Y$3,"") -> 
T101: 0 | U101: 0 | V101: 0 | W101: 0 | X101: 0 | Y101: 0 | AA101: =AA100+$AC$4 -> 0 | AB101: =IFERROR(AA101-$Y$3,"") ->  | AC101: =IFERROR(AA101+$Y$3,"") -> 
T102: 0 | U102: 0 | V102: 0 | W102: 0 | X102: 0 | Y102: 0 | AA102: =AA101+$AC$4 -> 0 | AB102: =IFERROR(AA102-$Y$3,"") ->  | AC102: =IFERROR(AA102+$Y$3,"") -> 
T103: 0 | U103: 0 | V103: 0 | W103: 0 | X103: 0 | Y103: 0 | AA103: =AA102+$AC$4 -> 0 | AB103: =IFERROR(AA103-$Y$3,"") ->  | AC103: =IFERROR(AA103+$Y$3,"") -> 
T104: 0 | U104: 0 | V104: 0 | W104: 0 | X104: 0 | Y104: 0 | AA104: =AA103+$AC$4 -> 0 | AB104: =IFERROR(AA104-$Y$3,"") ->  | AC104: =IFERROR(AA104+$Y$3,"") -> 
T105: 0 | U105: 0 | V105: 0 | W105: 0 | X105: 0 | Y105: 0 | AA105: =AA104+$AC$4 -> 0 | AB105: =IFERROR(AA105-$Y$3,"") ->  | AC105: =IFERROR(AA105+$Y$3,"") -> 
T106: 0 | U106: 0 | V106: 0 | W106: 0 | X106: 0 | Y106: 0
T107: 0 | U107: 0 | V107: 0 | W107: 0 | X107: 0 | Y107: 0
T108: 0 | U108: 0 | V108: 0 | W108: 0 | X108: 0 | Y108: 0
T109: 0 | U109: 0 | V109: 0 | W109: 0 | X109: 0 | Y109: 0
T110: 0 | U110: 0 | V110: 0 | W110: 0 | X110: 0 | Y110: 0
T111: 0 | U111: 0 | V111: 0 | W111: 0 | X111: 0 | Y111: 0
T112: 0 | U112: 0 | V112: 0 | W112: 0 | X112: 0 | Y112: 0
T113: 0 | U113: 0 | V113: 0 | W113: 0 | X113: 0 | Y113: 0
T114: 0 | U114: 0 | V114: 0 | W114: 0 | X114: 0 | Y114: 0
T115: 0 | U115: 0 | V115: 0 | W115: 0 | X115: 0 | Y115: 0
T116: 0 | U116: 0 | V116: 0 | W116: 0 | X116: 0 | Y116: 0
T117: 0 | U117: 0 | V117: 0 | W117: 0 | X117: 0 | Y117: 0
T118: =IF(C$4, C118, 0) -> 0 | U118: =IF(D$4, D118, 0) -> 0 | V118: =IF(E$4, E118, 0) -> 0 | W118: =IF(F$4, F118, 0) -> 0 | X118: =IF(G$4, G118, 0) -> 0 | Y118: =IF(H$4, H118, 0) -> 0
T119: 0 | U119: 0 | V119: 0 | W119: 0 | X119: 0 | Y119: 0
T120: 0 | U120: 0 | V120: 0 | W120: 0 | X120: 0 | Y120: 0
T121: 0 | U121: 0 | V121: 0 | W121: 0 | X121: 0 | Y121: 0
T122: 0 | U122: 0 | V122: 0 | W122: 0 | X122: 0 | Y122: 0
T123: 0 | U123: 0 | V123: 0 | W123: 0 | X123: 0 | Y123: 0
T124: 0 | U124: 0 | V124: 0 | W124: 0 | X124: 0 | Y124: 0
T125: 0 | U125: 0 | V125: 0 | W125: 0 | X125: 0 | Y125: 0
T126: 0 | U126: 0 | V126: 0 | W126: 0 | X126: 0 | Y126: 0
T127: 0 | U127: 0 | V127: 0 | W127: 0 | X127: 0 | Y127: 0
T128: 0 | U128: 0 | V128: 0 | W128: 0 | X128: 0 | Y128: 0
T129: 0 | U129: 0 | V129: 0 | W129: 0 | X129: 0 | Y129: 0
T130: 0 | U130: 0 | V130: 0 | W130: 0 | X130: 0 | Y130: 0
T131: 0 | U131: 0 | V131: 0 | W131: 0 | X131: 0 | Y131: 0
T132: 0 | U132: 0 | V132: 0 | W132: 0 | X132: 0 | Y132: 0
T133: 0 | U133: 0 | V133: 0 | W133: 0 | X133: 0 | Y133: 0
T134: 0 | U134: 0 | V134: 0 | W134: 0 | X134: 0 | Y134: 0
I135: =IFERROR(IF(ISBLANK(B135), "", T135*Q$6+U135*P$6+V135*O$6+W135*N$6+X135*M$6+Y135*L$6+R$6),"") ->  | T135: 0 | U135: 0 | V135: 0 | W135: 0 | X135: 0 | Y135: 0
T136: 0 | U136: 0 | V136: 0 | W136: 0 | X136: 0 | Y136: 0
T137: 0 | U137: 0 | V137: 0 | W137: 0 | X137: 0 | Y137: 0
T138: 0 | U138: 0 | V138: 0 | W138: 0 | X138: 0 | Y138: 0
T139: 0 | U139: 0 | V139: 0 | W139: 0 | X139: 0 | Y139: 0
T140: 0 | U140: 0 | V140: 0 | W140: 0 | X140: 0 | Y140: 0
T141: 0 | U141: 0 | V141: 0 | W141: 0 | X141: 0 | Y141: 0
T142: 0 | U142: 0 | V142: 0 | W142: 0 | X142: 0 | Y142: 0
T143: 0 | U143: 0 | V143: 0 | W143: 0 | X143: 0 | Y143: 0
T144: 0 | U144: 0 | V144: 0 | W144: 0 | X144: 0 | Y144: 0
T145: 0 | U145: 0 | V145: 0 | W145: 0 | X145: 0 | Y145: 0
T146: 0 | U146: 0 | V146: 0 | W146: 0 | X146: 0 | Y146: 0
T147: 0 | U147: 0 | V147: 0 | W147: 0 | X147: 0 | Y147: 0
T148: 0 | U148: 0 | V148: 0 | W148: 0 | X148: 0 | Y148: 0
T149: 0 | U149: 0 | V149: 0 | W149: 0 | X149: 0 | Y149: 0
T150: 0 | U150: 0 | V150: 0 | W150: 0 | X150: 0 | Y150: 0
T151: 0 | U151: 0 | V151: 0 | W151: 0 | X151: 0 | Y151: 0
T152: 0 | U152: 0 | V152: 0 | W152: 0 | X152: 0 | Y152: 0
T153: 0 | U153: 0 | V153: 0 | W153: 0 | X153: 0 | Y153: 0
T154: 0 | U154: 0 | V154: 0 | W154: 0 | X154: 0 | Y154: 0
T155: 0 | U155: 0 | V155: 0 | W155: 0 | X155: 0 | Y155: 0
T156: 0 | U156: 0 | V156: 0 | W156: 0 | X156: 0 | Y156: 0
T157: 0 | U157: 0 | V157: 0 | W157: 0 | X157: 0 | Y157: 0
T158: 0 | U158: 0 | V158: 0 | W158: 0 | X158: 0 | Y158: 0
T159: 0 | U159: 0 | V159: 0 | W159: 0 | X159: 0 | Y159: 0
T160: 0 | U160: 0 | V160: 0 | W160: 0 | X160: 0 | Y160: 0
T161: 0 | U161: 0 | V161: 0 | W161: 0 | X161: 0 | Y161: 0
T162: 0 | U162: 0 | V162: 0 | W162: 0 | X162: 0 | Y162: 0
T163: 0 | U163: 0 | V163: 0 | W163: 0 | X163: 0 | Y163: 0
T164: 0 | U164: 0 | V164: 0 | W164: 0 | X164: 0 | Y164: 0
T165: 0 | U165: 0 | V165: 0 | W165: 0 | X165: 0 | Y165: 0
T166: 0 | U166: 0 | V166: 0 | W166: 0 | X166: 0 | Y166: 0
T167: 0 | U167: 0 | V167: 0 | W167: 0 | X167: 0 | Y167: 0
T168: 0 | U168: 0 | V168: 0 | W168: 0 | X168: 0 | Y168: 0
T169: 0 | U169: 0 | V169: 0 | W169: 0 | X169: 0 | Y169: 0
T170: 0 | U170: 0 | V170: 0 | W170: 0 | X170: 0 | Y170: 0
T171: 0 | U171: 0 | V171: 0 | W171: 0 | X171: 0 | Y171: 0
T172: 0 | U172: 0 | V172: 0 | W172: 0 | X172: 0 | Y172: 0
T173: 0 | U173: 0 | V173: 0 | W173: 0 | X173: 0 | Y173: 0
T174: 0 | U174: 0 | V174: 0 | W174: 0 | X174: 0 | Y174: 0
T175: 0 | U175: 0 | V175: 0 | W175: 0 | X175: 0 | Y175: 0
T176: 0 | U176: 0 | V176: 0 | W176: 0 | X176: 0 | Y176: 0
T177: 0 | U177: 0 | V177: 0 | W177: 0 | X177: 0 | Y177: 0
T178: 0 | U178: 0 | V178: 0 | W178: 0 | X178: 0 | Y178: 0
T179: 0 | U179: 0 | V179: 0 | W179: 0 | X179: 0 | Y179: 0
T180: 0 | U180: 0 | V180: 0 | W180: 0 | X180: 0 | Y180: 0
T181: 0 | U181: 0 | V181: 0 | W181: 0 | X181: 0 | Y181: 0
T182: =IF(C$4, C182, 0) -> 0 | U182: =IF(D$4, D182, 0) -> 0 | V182: =IF(E$4, E182, 0) -> 0 | W182: =IF(F$4, F182, 0) -> 0 | X182: =IF(G$4, G182, 0) -> 0 | Y182: =IF(H$4, H182, 0) -> 0
T183: 0 | U183: 0 | V183: 0 | W183: 0 | X183: 0 | Y183: 0
T184: 0 | U184: 0 | V184: 0 | W184: 0 | X184: 0 | Y184: 0
T185: 0 | U185: 0 | V185: 0 | W185: 0 | X185: 0 | Y185: 0
T186: 0 | U186: 0 | V186: 0 | W186: 0 | X186: 0 | Y186: 0
T187: 0 | U187: 0 | V187: 0 | W187: 0 | X187: 0 | Y187: 0
T188: 0 | U188: 0 | V188: 0 | W188: 0 | X188: 0 | Y188: 0
T189: 0 | U189: 0 | V189: 0 | W189: 0 | X189: 0 | Y189: 0
T190: 0 | U190: 0 | V190: 0 | W190: 0 | X190: 0 | Y190: 0
T191: 0 | U191: 0 | V191: 0 | W191: 0 | X191: 0 | Y191: 0
T192: 0 | U192: 0 | V192: 0 | W192: 0 | X192: 0 | Y192: 0
T193: 0 | U193: 0 | V193: 0 | W193: 0 | X193: 0 | Y193: 0
T194: 0 | U194: 0 | V194: 0 | W194: 0 | X194: 0 | Y194: 0
T195: 0 | U195: 0 | V195: 0 | W195: 0 | X195: 0 | Y195: 0
T196: 0 | U196: 0 | V196: 0 | W196: 0 | X196: 0 | Y196: 0
T197: 0 | U197: 0 | V197: 0 | W197: 0 | X197: 0 | Y197: 0
T198: 0 | U198: 0 | V198: 0 | W198: 0 | X198: 0 | Y198: 0
I199: =IFERROR(IF(ISBLANK(B199), "", T199*Q$6+U199*P$6+V199*O$6+W199*N$6+X199*M$6+Y199*L$6+R$6),"") ->  | T199: 0 | U199: 0 | V199: 0 | W199: 0 | X199: 0 | Y199: 0
T200: 0 | U200: 0 | V200: 0 | W200: 0 | X200: 0 | Y200: 0
... 2050 more rows

Sheet Sheet1 (hidden)
B3: Optional Identifier | C3: Y | D3: X1 | E3: X2 | F3: X3 | G3: X4 | H3: X5 | I3: X6
B4: 1 | C4: =D4+2*E4+3*F4+4*G4+5*H4+6*I4 -> 8.440207331 | D4: =RAND() -> 0.5229009138 | E4: =RAND() -> 0.2564527286 | F4: 0.3871861719 | G4: 0.9588180085 | H4: 0.4254879685 | I4: 0.04668842799
B5: 2 | C5: =D5+2*E5+3*F5+4*G5+5*H5+6*I5 -> 12.27673246 | D5: =RAND() -> 0.1144075793 | E5: 0.3405589024 | F5: 0.414283237 | G5: 0.8869450676 | H5: 0.8257382379 | I5: 0.4269809844
B6: 3 | C6: 9.915159647 | D6: 0.4825907724 | E6: 0.6006560291 | F6: 0.959265224 | G6: 0.7633101647 | H6: 0.1623361631 | I6: 0.248089945
B7: 4 | C7: 6.455091841 | D7: 0.1891697986 | E7: 0.01886188889 | F7: 0.1924306603 | G7: 0.8160645803 | H7: 0.223512811 | I7: 0.2115139846
B8: 5 | C8: 11.89092939 | D8: 0.7283403868 | E8: 0.5289350533 | F8: 0.2244230493 | G8: 0.228222546 | H8: 0.7209595874 | I8: 0.8189602707
B9: 6 | C9: 9.007413694 | D9: 0.3399020089 | E9: 0.6365660247 | F9: 0.127933258 | G9: 0.3577758994 | H9: 0.1830038839 | I9: 0.777409474
B10: 7 | C10: 12.0164701 | D10: 0.9315346809 | E10: 0.3422261912 | F10: 0.6415649037 | G10: 0.405590655 | H10: 0.9223192465 | I10: 0.3736382458
B11: 8 | C11: 9.73652966 | D11: 0.6452323223 | E11: 0.5875710342 | F11: 0.9402567234 | G11: 0.4490753707 | H11: 0.6402536511 | I11: 0.01630256018
B12: 9 | C12: 10.32690589 | D12: 0.553722069 | E12: 0.7261441462 | F12: 0.7870207068 | G12: 0.7277494953 | H12: 0.2880211994 | I12: 0.2681215723
B13: 10 | C13: 6.513622399 | D13: 0.7676522347 | E13: 0.565011302 | F13: 0.2990184705 | G13: 0.005101597962 | H13: 0.3654110776 | I13: 0.3119050615
B14: 11 | C14: 15.59484575 | D14: 0.7559976419 | E14: 0.7428305676 | F14: 0.1565284815 | G14: 0.6451081921 | H14: 0.9298592397 | I14: 0.9423120941
B15: 12 | C15: 6.881608394 | D15: 0.4788104679 | E15: 0.2423580728 | F15: 0.1684198095 | G15: 0.2922042198 | H15: 0.4509893008 | I15: 0.3315098281
B16: 13 | C16: 5.824282662 | D16: 0.05768533073 | E16: 0.5564828386 | F16: 0.4769609139 | G16: 0.1596533443 | H16: 0.3560364932 | I16: 0.1339921782
B17: 14 | C17: 12.40617968 | D17: 0.3660996855 | E17: 0.6670193724 | F17: 0.7209549407 | G17: 0.9256373155 | H17: 0.07361047589 | I17: 0.7454291309
B18: 15 | C18: 11.43346255 | D18: 0.3908698282 | E18: 0.3078676421 | F18: 0.8330039795 | G18: 0.1397038682 | H18: 0.6299502798 | I18: 0.7032131042
B19: 16 | C19: 5.295876344 | D19: 0.2891213228 | E19: 0.1203068502 | F19: 0.9185921843 | G19: 0.04947570222 | H19: 0.3427528328 | I19: 0.0164496326
B20: 17 | C20: 10.81296414 | D20: 0.5938318877 | E20: 0.1318632959 | F20: 0.5648427247 | G20: 0.3231329427 | H20: 0.9487570912 | I20: 0.3707600439
B21: 18 | C21: 9.46729825 | D21: 0.7006911079 | E21: 0.9471122035 | F21: 0.6901447512 | G21: 0.9105058669 | H21: 0.1845567688 | I21: 0.03952352839
B22: 19 | C22: 7.976857996 | D22: 0.4611727195 | E22: 0.5428059219 | F22: 0.694086203 | G22: 0.1114598023 | H22: 0.1340699382 | I22: 0.5386043205
B23: 20 | C23: 8.676221735 | D23: 0.3972920709 | E23: 0.8020424072 | F23: 0.000647439807 | G23: 0.2435232886 | H23: 0.6692577138 | I23: 0.3920868012
B24: 21 | C24: 8.137934573 | D24: 0.5226315797 | E24: 0.5678513394 | F24: 0.4654249115 | G24: 0.08682601066 | H24: 0.6351820592 | I24: 0.2600185403
B25: 22 | C25: 13.26135577 | D25: 0.09259862199 | E25: 0.980470512 | F25: 0.912121814 | G25: 0.9083735654 | H25: 0.8813018086 | I25: 0.07190789576
B26: 23 | C26: 9.833611837 | D26: 0.5657135346 | E26: 0.8300565357 | F26: 0.1692647696 | G26: 0.9191011392 | H26: 0.2391349828 | I26: 0.3713185751
B27: 24 | C27: 5.545750736 | D27: 0.0613501777 | E27: 0.2713363598 | F27: 0.5318986134 | G27: 0.5697272073 | H27: 0.09399063808 | I27: 0.09952832992
B28: 25 | C28: 12.03290433 | D28: 0.7952474048 | E28: 0.1622504203 | F28: 0.01353468499 | G28: 0.6567440567 | H28: 0.8192661006 | I28: 0.6915408826
B29: 26 | C29: 14.58356974 | D29: 0.002425305137 | E29: 0.3173642474 | F29: 0.8416332704 | G29: 0.9922118123 | H29: 0.7798199972 | I29: 0.5922614822
B30: 27 | C30: 15.06514362 | D30: 0.6570818807 | E30: 0.7057983919 | F30: 0.3324015829 | G30: 0.85799661 | H30: 0.5935358897 | I30: 0.9332657193
B31: 28 | C31: 13.79311337 | D31: 0.833761457 | E31: 0.2640316123 | F31: 0.4990169795 | G31: 0.6730309627 | H31: 0.98667401 | I31: 0.5514573074
B32: 29 | C32: 11.44633247 | D32: 0.0755664521 | E32: 0.6571135952 | F32: 0.02951391771 | G32: 0.7929287985 | H32: 0.3866241131 | I32: 0.8105268859
B33: 30 | C33: 11.94071127 | D33: 0.719845908 | E33: 0.2214478316 | F33: 0.9720079358 | G33: 0.5629029313 | H33: 0.9893120057 | I33: 0.1106290236
B34: 31 | C34: 8.252384728 | D34: 0.2772405858 | E34: 0.9767269637 | F34: 0.1018249327 | G34: 0.7757407073 | H34: 0.5081268399 | I34: 0.01210306474
B35: 32 | C35: 13.81781188 | D35: 0.7351683936 | E35: 0.2358965334 | F35: 0.001868494646 | G35: 0.9473689434 | H35: 0.5978277007 | I35: 0.9711051106
B36: 33 | C36: 12.36169111 | D36: 0.7024424174 | E36: 0.0539073354 | F36: 0.9684357358 | G36: 0.9680621678 | H36: 0.476721011 | I36: 0.3983788476
B37: 34 | C37: 12.44678298 | D37: 0.1331079043 | E37: 0.6198078918 | F37: 0.8997634551 | G37: 0.348689521 | H37: 0.4835699089 | I37: 0.7603602169
B38: 35 | C38: 9.316908586 | D38: 0.9672652848 | E38: 0.9965184779 | F38: 0.617514031 | G38: 0.9849099369 | H38: 0.1083896177 | I38: 0.003746069337
B39: 36 | C39: 10.0764063 | D39: 0.01255272176 | E39: 0.194352022 | F39: 0.6589962884 | G39: 0.675825108 | H39: 0.377784973 | I39: 0.5176558962
B40: 37 | C40: 9.734764446 | D40: 0.2852751456 | E40: 0.2168865037 | F40: 0.1376446848 | G40: 0.05364498172 | H40: 0.6839999726 | I40: 0.8280337415
B41: 38 | C41: 10.49989318 | D41: 0.2183432087 | E41: 0.3282458044 | F41: 0.2450496891 | G41: 0.2898297042 | H41: 0.8860776779 | I41: 0.5500336808
B42: 39 | C42: 9.501189673 | D42: 0.6956615119 | E42: 0.0831939896 | F42: 0.9734353283 | G42: 0.2045978744 | H42: 0.6860472477 | I42: 0.2450344102
B43: 40 | C43: 13.4321394 | D43: 0.5126645272 | E43: 0.529071446 | F43: 0.251828104 | G43: 0.7994644469 | H43: 0.9256768869 | I43: 0.546600907
B44: 41 | C44: 12.26276218 | D44: 0.485259053 | E44: 0.6270311889 | F44: 0.4235658235 | G44: 0.7065085353 | H44: 0.124060312 | I44: 0.9677345957
B45: 42 | C45: 5.976385435 | D45: 0.2661169536 | E45: 0.1486335961 | F45: 0.1246384866 | G45: 0.6618774113 | H45: 0.2090257176 | I45: 0.2244079327
B46: 43 | C46: 9.887514123 | D46: 0.121210368 | E46: 0.9878074969 | F46: 0.1049025168 | G46: 0.5868945382 | H46: 0.5675740918 | I46: 0.3817554331
B47: 44 | C47: 10.05117006 | D47: 0.9243027421 | E47: 0.3901313295 | F47: 0.1107937978 | G47: 0.9053590048 | H47: 0.7006712133 | I47: 0.1482385297
B48: 45 | C48: 11.30138802 | D48: 0.3326839235 | E48: 0.08116045448 | F48: 0.9497734639 | G48: 0.2489386218 | H48: 0.4826008157 | I48: 0.7580507054
B49: 46 | C49: 8.978727142 | D49: 0.5476311988 | E49: 0.07963128089 | F49: 0.1912796381 | G49: 0.7238852894 | H49: 0.2399411246 | I49: 0.6004579478
B50: 47 | C50: 6.011307617 | D50: 0.7712783865 | E50: 0.8345936035 | F50: 0.06871088905 | G50: 0.6266218723 | H50: 0.1306899851 | I50: 0.03412865693
B51: 48 | C51: 12.46748146 | D51: 0.7259754797 | E51: 0.0904271937 | F51: 0.8236504835 | G51: 0.4745344728 | H51: 0.8305889166 | I51: 0.5064362773
B52: 49 | C52: 7.911163988 | D52: 0.092680977 | E52: 0.9864638888 | F52: 0.4934324029 | G52: 0.06060753977 | H52: 0.3322140287 | I52: 0.4102929537
B53: 50 | C53: 10.13463953 | D53: 0.06037080728 | E53: 0.3297878374 | F53: 0.9318849763 | G53: 0.2006313417 | H53: 0.2942311649 | I53: 0.7242261553
B54: 51 | C54: 7.237911571 | D54: 0.3372646062 | E54: 0.5328786095 | F54: 0.5782659142 | G54: 0.3981876309 | H54: 0.1419181993 | I54: 0.2996250805
B55: 52 | C55: 16.23565419 | D55: 0.7810942326 | E55: 0.7691009901 | F55: 0.5106926038 | G55: 0.9119111474 | H55: 0.6636985224 | I55: 0.9030238275
B56: 53 | C56: 13.24287695 | D56: 0.8067356178 | E56: 0.3586025426 | F56: 0.2791057643 | G56: 0.4726369509 | H56: 0.8165783958 | I56: 0.8180298615
B57: 54 | C57: 7.120453701 | D57: 0.5122686981 | E57: 0.8657348912 | F57: 0.1089115482 | G57: 0.8612307358 | H57: 0.1539898531 | I57: 0.05585139449
B58: 55 | C58: 13.47510864 | D58: 0.584819395 | E58: 0.3185487519 | F58: 0.8763977136 | G58: 0.838158028 | H58: 0.8141571321 | I58: 0.3667634712
B59: 56 | C59: 9.580089924 | D59: 0.2099864 | E59: 0.7096071187 | F59: 0.5755946437 | G59: 0.2477985157 | H59: 0.8266864394 | I59: 0.183246516
B60: 57 | C60: 11.26251289 | D60: =RAND() -> 0.3980756562 | E60: 0.5605817798 | F60: 0.6932177619 | G60: 0.1699028395 | H60: 0.3315159193 | I60: 0.8877382396
B61: 58 | C61: 14.22527823 | D61: 0.1054799322 | E61: 0.7686777053 | F61: 0.5320150414 | G61: 0.7313710021 | H61: 0.6997772122 | I61: 0.7603379486
B62: 59 | C62: 9.794804915 | D62: 0.7684890057 | E62: 0.05382105146 | F62: 0.3073933165 | G62: 0.5823954391 | H62: 0.479498789 | I62: 0.5449030259
B63: 60 | C63: 9.524873718 | D63: 0.4149919473 | E63: 0.2454285078 | F63: 0.7598090124 | G63: 0.3437794104 | H63: 0.2556008598 | I63: 0.6144126295
B64: 61 | C64: 8.243057979 | D64: 0.9255651362 | E64: 0.4799305345 | F64: 0.4175521711 | G64: 0.1471660494 | H64: 0.5830589598 | I64: 0.2668360439
B65: 62 | C65: 17.16299311 | D65: 0.6608307364 | E65: 0.9043320743 | F65: 0.791248086 | G65: 0.909973992 | H65: 0.6241071768 | I65: 0.9265536862
B66: 63 | C66: 13.77395238 | D66: 0.03733119286 | E66: 0.8109549064 | F66: 0.7648843128 | G66: 0.08759682627 | H66: 0.7651563667 | I66: 0.9406482163
B67: 64 | C67: 13.14047813 | D67: 0.8983591353 | E67: 0.5739935525 | F67: 0.8790734872 | G67: 0.8701019797 | H67: 0.6964997994 | I67: 0.2490007519
B68: 65 | C68: 14.64373576 | D68: 0.8342603718 | E68: 0.4877714045 | F68: 0.6016273899 | G68: 0.4367559966 | H68: 0.9451579102 | I68: 0.7593728117
B69: 66 | C69: =D69+2*E69+3*F69+4*G69+5*H69+6*I69 -> 8.457481061 | D69: 0.2962197947 | E69: 0.9124259366 | F69: 0.1955916735 | G69: 0.348991699 | H69: 0.5898719085 | I69: 0.234051339
B70: 67 | C70: 15.78041442 | D70: 0.7039589325 | E70: 0.372929731 | F70: 0.7900152862 | G70: 0.8697746766 | H70: 0.6575638586 | I70: 0.8656053609
B71: 68 | C71: 6.349331823 | D71: 0.1839515952 | E71: 0.4511591186 | F71: 0.184529998 | G71: 0.3693335808 | H71: 0.1685422256 | I71: 0.3982377575
B72: 69 | C72: 11.29924613 | D72: 0.7405203609 | E72: 0.8856073454 | F72: 0.3225108501 | G72: 0.8365908366 | H72: 0.7275030604 | I72: 0.1393499795
B73: 70 | C73: 8.568573415 | D73: 0.8879826282 | E73: 0.1485554092 | F73: 0.2925129978 | G73: 0.5129740328 | H73: 0.8614186666 | I73: 0.02449191849
B74: 71 | C74: 13.1155634 | D74: 0.05073270103 | E74: 0.3547625083 | F74: 0.8230561221 | G74: 0.5954074503 | H74: 0.4833079493 | I74: 0.8479946289
B75: 72 | C75: 11.1144103 | D75: 0.9235477379 | E75: 0.07921453964 | F75: 0.8496058087 | G75: 0.4907077802 | H75: 0.1505430012 | I75: 0.7946783218
B76: 73 | C76: 10.34216823 | D76: 0.4280824264 | E76: 0.308068461 | F76: 0.2235248559 | G76: 0.2071345452 | H76: 0.4504525092 | I76: 0.9244289313
B77: 74 | C77: 8.218948766 | D77: 0.9371873067 | E77: 0.3338895228 | F77: 0.5941994071 | G77: 0.3335717209 | H77: 0.2199024622 | I77: 0.3995974996
B78: 75 | C78: 11.66892824 | D78: 0.9985326124 | E78: 0.2467081353 | F78: 0.9586085068 | G78: 0.1550970593 | H78: 0.2620181489 | I78: 0.8951124751
B79: 76 | C79: 7.173398461 | D79: 0.05963463012 | E79: 0.9752029794 | F79: 0.8473346749 | G79: 0.3318617592 | H79: 0.1820882089 | I79: 0.0639109611
B80: 77 | C80: 6.642352879 | D80: 0.04500759546 | E80: 0.4258550754 | F80: 0.9967919574 | G80: 0.05511362663 | H80: 0.1679146901 | I80: 0.2825385506
B81: 78 | C81: 10.39589473 | D81: 0.7085658345 | E81: 0.7295626811 | F81: 0.2905966553 | G81: 0.6143505516 | H81: 0.4209341949 | I81: 0.4657233985
B82: 79 | C82: 9.100396739 | D82: 0.4475194177 | E82: 0.9665772287 | F82: 0.4807914523 | G82: 0.7228301484 | H82: 0.3496545448 | I82: 0.1062925316
B83: 80 | C83: 12.07808072 | D83: 0.2123570997 | E83: 0.0168191569 | F83: 0.890527234 | G83: 0.8250813997 | H83: 0.9577089914 | I83: 0.178605508
B84: 81 | C84: 12.6759658 | D84: 0.2956992908 | E84: 0.2621882874 | F84: 0.2951276899 | G84: 0.3865679422 | H84: 0.7926548511 | I84: 0.9101601397
B85: 82 | C85: 8.816180457 | D85: 0.6807624872 | E85: 0.6183988569 | F85: 0.2927147582 | G85: 0.9869781261 | H85: 0.2660246309 | I85: 0.1237400537
B86: 83 | C86: 5.591710627 | D86: 0.8745929593 | E86: 0.2093601074 | F86: 0.06719832266 | G86: 0.4924040177 | H86: 0.00597320969 | I86: 0.3495533943
B87: 84 | C87: 10.64120601 | D87: 0.3554514766 | E87: 0.7942318052 | F87: 0.723933815 | G87: 0.936806279 | H87: 0.1023734296 | I87: 0.3777328688
B88: 85 | C88: 11.25133498 | D88: 0.1129499831 | E88: 0.1898721233 | F88: 0.3565382441 | G88: 0.1647418694 | H88: 0.6404769044 | I88: 0.9712790028
B89: 86 | C89: 8.105616222 | D89: 0.08024647436 | E89: 0.3537734067 | F89: 0.2277006105 | G89: 0.5543113478 | H89: 0.4041910412 | I89: 0.3994200842
B90: 87 | C90: 10.78277305 | D90: 0.8853457372 | E90: 0.03100933101 | F90: 0.06336231684 | G90: 0.9117983014 | H90: 0.6219847097 | I90: 0.4813674905
B91: 88 | C91: 14.01222068 | D91: 0.3307877809 | E91: 0.6372200706 | F91: 0.6953878369 | G91: 0.1903161819 | H91: 0.9629040465 | I91: 0.7908407152
B92: 89 | C92: 8.743302004 | D92: 0.4121086602 | E92: 0.709178728 | F92: 0.3491286843 | G92: 0.09929096698 | H92: 0.636393513 | I92: 0.381053067
B93: 90 | C93: 12.1241524 | D93: 0.6253861328 | E93: 0.4149911398 | F93: 0.7812435226 | G93: 0.8123492963 | H93: 0.8638558353 | I93: 0.1260628429
B94: 91 | C94: 13.82372419 | D94: 0.8977982491 | E94: 0.3891901381 | F94: 0.9174485441 | G94: 0.1683091448 | H94: 0.9839994407 | I94: 0.6336610423
B95: 92 | C95: 9.313402028 | D95: 0.1457810092 | E95: 0.1230449609 | F95: 0.3582975958 | G95: 0.9745865114 | H95: 0.1848385846 | I95: 0.5040165569
B96: 93 | C96: 15.97228842 | D96: 0.3667713912 | E96: 0.5415628912 | F96: 0.8190052723 | G96: 0.5526874993 | H96: 0.7905943798 | I96: 0.9836089227
B97: 94 | C97: 9.438727689 | D97: 0.9122632989 | E97: 0.6419406425 | F97: 0.03492994063 | G97: 0.2774589834 | H97: 0.1389026976 | I97: 0.8889073102
B98: 95 | C98: 10.62905668 | D98: 0.1154007421 | E98: 0.3324972003 | F98: 0.12484806 | G98: 0.7344131101 | H98: 0.5151305115 | I98: 0.6601353926
B99: 96 | C99: 11.34423124 | D99: 0.4361304962 | E99: 0.03986972379 | F99: 0.2039876233 | G99: 0.8173255767 | H99: 0.8089896679 | I99: 0.4836912961
B100: 97 | C100: 14.40173615 | D100: 0.9598421935 | E100: 0.2526769328 | F100: 0.954217565 | G100: 0.7534068944 | H100: 0.7050163898 | I100: 0.5891963117
B101: 98 | C101: 10.15116229 | D101: 0.5093074058 | E101: 0.4835229851 | F101: 0.3469430551 | G101: 0.1813064285 | H101: 0.4375484001 | I101: 0.7868353384
B102: 99 | C102: 10.10996853 | D102: 0.1366103469 | E102: 0.6558740491 | F102: 0.1484281917 | G102: =RAND() -> 0.265811259 | H102: 0.3256656267 | I102: 0.920792056
B103: 100 | C103: 11.26783778 | D103: =RAND() -> 0.9962279357 | E103: 0.796849433 | F103: 0.9133665431 | G103: 0.9632746656 | H103: 0.09043134354 | I103: 0.2720926619
B104: 101 | C104: 10.53236756 | D104: 0.7978116282 | E104: 0.673664533 | F104: 0.6594468497 | G104: 0.8188366853 | H104: 0.02338988581 | I104: 0.5027650243
B105: 102 | C105: 6.50649682 | D105: 0.9653672073 | E105: 0.4256077695 | F105: 0.2478529587 | G105: 0.06048356846 | H105: 0.6786950478 | I105: 0.05182428074
B106: 103 | C106: 12.80499184 | D106: 0.02977673179 | E106: 0.4249298538 | F106: 0.3333887432 | G106: 0.9894510647 | H106: 0.4705109634 | I106: 0.76913835
B107: 104 | C107: 12.96079439 | D107: 0.4881950277 | E107: 0.1523628221 | F107: 0.9479878903 | G107: 0.4361053711 | H107: 0.9031030672 | I107: 0.5106622051
B108: 105 | C108: 6.602876747 | D108: 0.001261427535 | E108: 0.6765058379 | F108: 0.7340509348 | G108: 0.2903556388 | H108: 0.3495861174 | I108: 0.02284961623
B109: 106 | C109: 12.30024478 | D109: 0.1812076627 | E109: 0.6519161119 | F109: 0.3969907266 | G109: 0.9460663761 | H109: 0.8609329187 | I109: 0.2558837693
B110: 107 | C110: 8.891424784 | D110: 0.9818073701 | E110: 0.1029547438 | F110: 0.09520419065 | G110: 0.5846531874 | H110: 0.1544271465 | I110: 0.7178911454
B111: 108 | C111: 13.08405631 | D111: 0.6902213537 | E111: 0.8842365503 | F111: 0.5939209321 | G111: 0.7975142932 | H111: 0.5323795584 | I111: 0.4986073495
B112: 109 | C112: 7.330798502 | D112: 0.1533963878 | E112: 0.1579316034 | F112: 0.6473903446 | G112: 0.0756975375 | H112: 0.8442119741 | I112: 0.06591964226
B113: 110 | C113: 11.316354 | D113: 0.5992232671 | E113: 0.8421248337 | F113: 0.4077245551 | G113: 0.356492076 | H113: 0.67337874 | I113: 0.5028075662
B114: 111 | C114: 18.13240597 | D114: 0.9670349873 | E114: 0.7732300452 | F114: 0.5261815965 | G114: 0.856675245 | H114: 0.9887188206 | I114: 0.9450118369
B115: 112 | C115: 13.23726371 | D115: 0.3466615683 | E115: 0.2408157012 | F115: 0.5837968952 | G115: 0.5626638375 | H115: 0.677426732 | I115: 0.8366318399
B116: 113 | C116: 5.236218319 | D116: 0.4112056251 | E116: 0.5594246853 | F116: 0.5621066653 | G116: 0.2822836813 | H116: 0.107068792 | I116: 0.05922744034
B117: 114 | C117: 9.339271673 | D117: 0.9527980124 | E117: 0.9699058116 | F117: 0.1079093 | G117: 0.9142924337 | H117: 0.3998932825 | I117: 0.07771633165
B118: 115 | C118: 16.57652333 | D118: 0.2233186722 | E118: 0.5805061366 | F118: 0.6279927169 | G118: 0.9303123856 | H118: 0.7523715852 | I118: 0.9708511268
B119: 116 | C119: 11.32256265 | D119: 0.6584264816 | E119: 0.8669798111 | F119: 0.4024198504 | G119: 0.6436270376 | H119: 0.1280454934 | I119: 0.7513635625
B120: 117 | C120: 11.34088228 | D120: 0.4011376196 | E120: 0.6482328093 | F120: 0.2403727299 | G120: 0.6844468672 | H120: 0.5185289956 | I120: 0.5986214015
B121: 118 | C121: 8.945610969 | D121: 0.7281597182 | E121: 0.2264511009 | F121: 0.3907297431 | G121: 0.2520242161 | H121: 0.4957737634 | I121: 0.5175656897
B122: 119 | C122: 9.213357803 | D122: 0.3758651211 | E122: 0.2953116123 | F122: 0.5620898497 | G122: 0.7853070954 | H122: 0.1215458475 | I122: 0.4686070481
B123: 120 | C123: 10.37320722 | D123: 0.8754251157 | E123: 0.09879198289 | F123: 0.7982130285 | G123: 0.3866840938 | H123: 0.0404397672 | I123: 0.8594373072
B124: 121 | C124: 12.38158519 | D124: 0.8481323625 | E124: 0.6941371327 | F124: 0.5197483436 | G124: 0.7043246679 | H124: 0.07880714235 | I124: 0.8957665249
B125: 122 | C125: 5.380976144 | D125: 0.1195252456 | E125: 0.5865098843 | F125: 0.01554973816 | G125: 0.4630123192 | H125: 0.2754554901 | I125: 0.1354091981
B126: 123 | C126: 5.596272301 | D126: 0.008040964022 | E126: 0.2124811038 | F126: 0.2272346022 | G126: 0.02931833952 | H126: 0.5512690356 | I126: 0.2679911311
B127: 124 | C127: 5.708815579 | D127: 0.5130517484 | E127: 0.9513429194 | F127: 0.08763148423 | G127: 0.1705258909 | H127: 0.3693771506 | I127: 0.0835323705
B128: 125 | C128: 10.28852083 | D128: 0.8003041236 | E128: 0.9164921728 | F128: 0.5851961723 | G128: 0.7809702384 | H128: 0.4415288023 | I128: 0.09468648024
B129: 126 | C129: 12.37000228 | D129: 0.09686801161 | E129: 0.3306083377 | F129: 0.9833790476 | G129: 0.7875524286 | H129: 0.6272679268 | I129: 0.3958718497
B130: 127 | C130: 14.48422538 | D130: 0.1651206648 | E130: 0.731974045 | F130: 0.07170941673 | G130: 0.9136039359 | H130: 0.7656619441 | I130: 0.8595504846
B131: 128 | C131: 11.36352319 | D131: 0.2560470302 | E131: 0.4733726565 | F131: 0.4333930743 | G131: 0.103785545 | H131: 0.6375720971 | I131: 0.8762581596
B132: 129 | C132: 8.903424866 | D132: 0.2220090351 | E132: 0.2891141268 | F132: 0.5166331383 | G132: 0.02863301098 | H132: 0.1956065509 | I132: 0.9101205606
B133: 130 | C133: =D133+2*E133+3*F133+4*G133+5*H133+6*I133 -> 13.40851573 | D133: 0.05873731812 | E133: 0.02766633595 | F133: 0.7785635351 | G133: 0.4573925821 | H133: 0.9188436557 | I133: 0.7558277553
B134: 131 | C134: 11.16561592 | D134: 0.9954831955 | E134: 0.8251638809 | F134: 0.9423322683 | G134: 0.344534465 | H134: 0.1455855148 | I134: 0.5977904543
B135: 132 | C135: 13.02461579 | D135: 0.6408011659 | E135: 0.6603925632 | F135: 0.05322793954 | G135: 0.6175156945 | H135: 0.8560070739 | I135: 0.6922079222
B136: 133 | C136: 10.27563314 | D136: 0.4179333952 | E136: 0.8775830546 | F136: 0.4805858236 | G136: 0.03826259691 | H136: 0.7804129666 | I136: 0.4342768233
B137: 134 | C137: 13.07147826 | D137: 0.05753556512 | E137: 0.9184365374 | F137: 0.9756667361 | G137: 0.8818218239 | H137: 0.02004989238 | I137: 0.7704221092
B138: 135 | C138: 9.112120552 | D138: 0.9231630769 | E138: 0.5122989232 | F138: 0.3122746414 | G138: 0.1299361316 | H138: 0.05244730481 | I138: 0.9075924424
B139: 136 | C139: 10.18710393 | D139: 0.1569547607 | E139: 0.951276931 | F139: 0.3893798614 | G139: 0.04609579857 | H139: 0.3703666468 | I139: 0.8205398831
B140: 137 | C140: 8.828476337 | D140: 0.3254907576 | E140: 0.9753494802 | F140: 0.9469241163 | G140: 0.4223015007 | H140: 0.3573932371 | I140: 0.03922368031
B141: 138 | C141: 9.25547722 | D141: 0.6203316991 | E141: 0.7975945066 | F141: 0.1925032585 | G141: 0.7576050843 | H141: 0.2156257293 | I141: 0.3923162914
B142: 139 | C142: 10.58260819 | D142: 0.3751089001 | E142: 0.8140770647 | F142: 0.5657105886 | G142: 0.6593441395 | H142: 0.02037387466 | I142: 0.6904945767
B143: 140 | C143: 7.732483114 | D143: 0.5049618911 | E143: 0.5626587961 | F143: 0.2027113702 | G143: 0.1779555913 | H143: 0.1795525004 | I143: 0.6474141089
B144: 141 | C144: 11.30285351 | D144: 0.020426476 | E144: 0.3944975619 | F144: 0.6257954739 | G144: 0.03133411426 | H144: 0.7793775112 | I144: 0.765636912
B145: 142 | C145: 10.5021168 | D145: 0.0588461517 | E145: 0.784971968 | F145: 0.3589995575 | G145: 0.6900036333 | H145: 0.2165108432 | I145: 0.6589598816
B146: 143 | C146: 10.50386087 | D146: 0.3181803726 | E146: 0.7704442613 | F146: 0.7087341378 | G146: 0.05922256553 | H146: 0.9766003193 | I146: 0.2331162837
B147: 144 | C147: 12.54594962 | D147: 0.1024408898 | E147: 0.6069035885 | F147: 0.6967713966 | G147: 0.8741489434 | H147: 0.7240971068 | I147: 0.3370510098
B148: 145 | C148: 10.7743753 | D148: 0.2915341051 | E148: 0.2839726597 | F148: 0.1157789565 | G148: 0.1961392407 | H148: 0.5744502841 | I148: 0.985125104
B149: 146 | C149: 8.648982128 | D149: 0.8695182272 | E149: 0.7973333837 | F149: 0.5086739237 | G149: 0.06688297701 | H149: 0.8310134477 | I149: 0.03936270265
B150: 147 | C150: 9.855913751 | D150: 0.1097264297 | E150: 0.7581790954 | F150: 0.5995075278 | G150: 0.6690678368 | H150: 0.4071930531 | I150: 0.2865116557
B151: 148 | C151: 10.75324571 | D151: 0.7225314594 | E151: 0.6976514737 | F151: 0.2152206472 | G151: 0.495660306 | H151: 0.7471661599 | I151: 0.3785462229
B152: 149 | C152: 8.18567692 | D152: 0.7531846638 | E152: 0.5431045067 | F152: 0.30597763 | G152: 0.9638907076 | H152: 0.2548615717 | I152: 0.04974661064
B153: 150 | C153: 15.07936723 | D153: 0.6056124577 | E153: 0.2474973506 | F153: 0.3038322479 | G153: =RAND() -> 0.8587174619 | H153: 0.7311900724 | I153: 0.9960738536
B154: 151 | C154: 13.83635649 | D154: 0.1993103865 | E154: 0.7183073213 | F154: 0.4368772751 | G154: 0.8077034817 | H154: 0.7259760887 | I154: 0.6715175447
B155: 152 | C155: 6.979558391 | D155: 0.5695341875 | E155: 0.1276196023 | F155: 0.09265113047 | G155: 0.05253786359 | H155: 0.1215705549 | I155: 0.8431378965
B156: 153 | C156: 8.189794957 | D156: 0.4134567369 | E156: 0.08339432887 | F156: 0.2965480905 | G156: 0.6174499345 | H156: 0.7362543992 | I156: 0.09480559271
B157: 154 | C157: 7.855277689 | D157: 0.9003603604 | E157: 0.9270988328 | F157: 0.5688954834 | G157: 0.02803632885 | H157: 0.07999168 | I157: 0.4803215829
B158: 155 | C158: 8.637257409 | D158: 0.4302933513 | E158: 0.6864390286 | F158: 0.170043076 | G158: 0.3582357489 | H158: 0.9108012734 | I158: 0.05616790168
B159: 156 | C159: 7.715682403 | D159: 0.009745026086 | E159: 0.1781949274 | F159: 0.4824908663 | G159: 0.4054763149 | H159: 0.5705865846 | I159: 0.2378727901
B160: 157 | C160: 8.045677503 | D160: 0.7359636931 | E160: 0.3240548184 | F160: 0.7882888022 | G160: 0.7984713678 | H160: 0.2115011313 | I160: 0.007557773019
B161: 158 | C161: 7.914399925 | D161: 0.5468550462 | E161: 0.8778185095 | F161: 0.1656197248 | G161: 0.01245100061 | H161: 0.3547276864 | I161: 0.5486010418
B162: 159 | C162: 13.4423799 | D162: 0.7320064295 | E162: 0.2825506986 | F162: 0.9169062594 | G162: 0.4123116803 | H162: 0.5961036651 | I162: 0.7941313739
B163: 160 | C163: 7.732642721 | D163: 0.7250785521 | E163: 0.09371064755 | F163: 0.006604786933 | G163: 0.3969272595 | H163: 0.3264573929 | I163: 0.596722085
B164: 161 | C164: 8.712697671 | D164: 0.6331111157 | E164: 0.5153045229 | F164: 0.04448992551 | G164: 0.7337695364 | H164: 0.6718720311 | I164: 0.103511572
B165: 162 | C165: 8.918972466 | D165: 0.6935910211 | E165: 0.9544371662 | F165: 0.348290134 | G165: 0.5742727975 | H165: 0.4873784016 | I165: 0.08960891875
B166: 163 | C166: 6.534775113 | D166: 0.4777275076 | E166: 0.2447659193 | F166: 0.3014178623 | G166: 0.1894856959 | H166: 0.2506161631 | I166: 0.4420397634
B167: 164 | C167: 13.51302093 | D167: =RAND() -> 0.6096026687 | E167: 0.2992701709 | F167: 0.8159610607 | G167: 0.8361320161 | H167: 0.9568174184 | I167: 0.2880632637
B168: 165 | C168: 6.867078698 | D168: 0.7666607746 | E168: 0.3999153823 | F168: 0.4971380265 | G168: 0.2640149662 | H168: 0.4382687618 | I168: 0.09362823431
B169: 166 | C169: 9.924905584 | D169: 0.3563623063 | E169: 0.9624139997 | F169: 0.1100546593 | G169: 0.3696907075 | H169: 0.3494303932 | I169: 0.6812727507
B170: 167 | C170: 10.63368666 | D170: 0.5987836119 | E170: 0.7128874576 | F170: 0.004349216321 | G170: 0.813039484 | H170: 0.655077735 | I170: 0.3447556452
B171: 168 | C171: 9.891975978 | D171: 0.6877622514 | E171: 0.5671602832 | F171: 0.7758241083 | G171: 0.2679235285 | H171: 0.3759701286 | I171: 0.4651460131
B172: 169 | C172: 14.64033269 | D172: 0.8946730127 | E172: 0.6263445921 | F172: 0.8582122382 | G172: 0.4635538402 | H172: 0.8406015989 | I172: 0.6435184034
B173: 170 | C173: 16.9637757 | D173: 0.3963568489 | E173: 0.6105234668 | F173: 0.8997689133 | G173: 0.6986041647 | H173: 0.9834365348 | I173: 0.8225776401
B174: 171 | C174: 15.07568042 | D174: 0.8821229789 | E174: 0.853058774 | F174: 0.4129305136 | G174: 0.7684566865 | H174: 0.5438812335 | I174: 0.9092359057
B175: 172 | C175: 8.171824041 | D175: 0.5060101477 | E175: 0.7504622571 | F175: 0.4318065764 | G175: 0.3486249963 | H175: 0.6067437926 | I175: 0.07354178368
B176: 173 | C176: 9.191217255 | D176: 0.8023953934 | E176: 0.4183818437 | F176: 0.2901964339 | G176: 0.3862208335 | H176: 0.4057892291 | I176: 0.5179398988
B177: 174 | C177: 8.096521123 | D177: 0.1844831168 | E177: 0.3025064413 | F177: 0.3728396809 | G177: 0.1345571522 | H177: 0.4799936809 | I177: 0.5417181778
B178: 175 | C178: 9.653762624 | D178: 0.2301168876 | E178: 0.1727227154 | F178: 0.3088368352 | G178: 0.5232633823 | H178: 0.9602919681 | I178: 0.209529405
B179: 176 | C179: 10.40187967 | D179: 0.958760655 | E179: 0.1601556459 | F179: 0.7209457119 | G179: 0.04024549713 | H179: 0.3667956777 | I179: 0.8275017017
B180: 177 | C180: 6.341208447 | D180: 0.7250989197 | E180: 0.4238508635 | F180: 0.3294232739 | G180: 0.01655306848 | H180: 0.5710328071 | I180: 0.1431269449
B181: 178 | C181: 13.27513344 | D181: 0.3744828439 | E181: 0.8545118847 | F181: 0.4328042702 | G181: 0.2128620482 | H181: 0.9734636648 | I181: 0.6957412496
B182: 179 | C182: 11.4510757 | D182: 0.003373210604 | E182: 0.4956895033 | F182: 0.547317271 | G182: 0.2610819413 | H182: 0.5132172012 | I182: 0.8673263161
B183: 180 | C183: 14.39505556 | D183: 0.9176209893 | E183: 0.9107701561 | F183: 0.9918318728 | G183: 0.8790185766 | H183: 0.6209228829 | I183: 0.3432849861
B184: 181 | C184: 10.12556329 | D184: 0.2210518582 | E184: 0.5731037368 | F184: 0.334596825 | G184: 0.6872159044 | H184: 0.4343076565 | I184: 0.47235193
B185: 182 | C185: 6.722269588 | D185: 0.5900819985 | E185: 0.3374827686 | F185: 0.1140372784 | G185: 0.7536057108 | H185: 0.1979130514 | I185: 0.1851870195
B186: 183 | C186: 9.686977926 | D186: 0.3187494545 | E186: 0.08662407606 | F186: 0.9792344828 | G186: 0.7040836136 | H186: 0.6839298845 | I186: 0.00354883231
B187: 184 | C187: 12.0706886 | D187: 0.2270619946 | E187: 0.6348666179 | F187: 0.5705372939 | G187: 0.7745249019 | H187: 0.4771461822 | I187: 0.5630751621
B188: 185 | C188: 7.947277513 | D188: 0.4244883806 | E188: 0.0868049811 | F188: 0.9933874541 | G188: 0.3180255739 | H188: 0.1023957385 | I188: 0.4308226366
B189: 186 | C189: 9.223448421 | D189: 0.3269226253 | E189: 0.3179197909 | F189: 0.1071362349 | G189: 0.1347397857 | H189: 0.2989411277 | I189: 0.984268788
B190: 187 | C190: 12.55873348 | D190: 0.1467978236 | E190: 0.4986793276 | F190: 0.2285101854 | G190: 0.6130682696 | H190: 0.8465184235 | I190: 0.6740302074
B191: 188 | C191: 14.22182103 | D191: 0.8596111815 | E191: 0.9402636193 | F191: 0.4285494869 | G191: 0.3018572446 | H191: 0.6533661087 | I191: 0.953629105
B192: 189 | C192: 11.14426742 | D192: 0.5543049793 | E192: 0.8451401591 | F192: 0.5530580102 | G192: 0.7428015918 | H192: 0.2408694621 | I192: 0.510825736
B193: 190 | C193: 6.450314406 | D193: 0.7398818469 | E193: 0.452532228 | F193: 0.3846379003 | G193: 0.3277384323 | H193: 0.1037045456 | I193: 0.3036629908
B194: 191 | C194: 8.050982708 | D194: 0.8910708923 | E194: 0.1777092368 | F194: 0.1674997672 | G194: 0.4384215031 | H194: 0.7063247186 | I194: 0.1694474058
B195: 192 | C195: 8.20331286 | D195: 0.8439255245 | E195: 0.7982088405 | F195: 0.1305180123 | G195: 0.4274609382 | H195: 0.238460972 | I195: 0.4115445008
B196: 193 | C196: 7.485806635 | D196: 0.98165911 | E196: 0.6386997907 | F196: 0.1745741151 | G196: 0.1216376603 | H196: 0.7144742228 | I196: 0.1073506406
B197: 194 | C197: =D197+2*E197+3*F197+4*G197+5*H197+6*I197 -> 10.96447335 | D197: 0.914645195 | E197: 0.02109026376 | F197: 0.134315162 | G197: 0.8638714358 | H197: 0.9970505608 | I197: 0.1939939326
B198: 195 | C198: 10.46828157 | D198: 0.6666488661 | E198: 0.1153260979 | F198: 0.4730307911 | G198: 0.2813581967 | H198: 0.687475808 | I198: 0.5981793843
B199: 196 | C199: 8.530105147 | D199: 0.5272709987 | E199: 0.9182536163 | F199: 0.4628714573 | G199: 0.7439888463 | H199: 0.1112892952 | I199: 0.2075517804
B200: 197 | C200: 13.65644495 | D200: 0.7842140208 | E200: 0.7185033163 | F200: 0.1639598903 | G200: 0.9999250369 | H200: 0.2872704296 | I200: 0.9178820546
B201: 198 | C201: 8.371828706 | D201: 0.6800456813 | E201: 0.9802439965 | F201: 0.2881025324 | G201: 0.2126724929 | H201: 0.7815565145 | I201: 0.01808581511
B202: 199 | C202: 14.34805249 | D202: 0.2924395387 | E202: 0.9623820608 | F202: 0.8275870327 | G202: 0.4711018691 | H202: 0.7673346786 | I202: 0.6545011441
... 9801 more rows

Sheet LOR Estimates Ws
B1: Worksheet: Log Odds Ratio
B2: This spreadsheet shows an example of how to use the Log Odds Ratios (LOR) to apply several conditions to a single probability. This spreadsheet will estimate the conditional probability of a cybersecurity event given the aggregate effect of several conditions. Further details are given in the areas to the left below.
A5: In the yellow cells to the right, enter time period of your estimates in years and the initial probability of a cybersecurity event occurring in the that time period. For example, you might estimate the likelihood of an event over a 5 year period at 5%. You are given no information about the event other than it is one of your applications. This is then converted to a baseline log odds ratio that the adjustments below will be applied to. It also computes a total number of combinations of the attributes (just for reference). | B5: Time Period for Estimates (years): | C5: 5
B6: Initial Probability of Event per Time Period: P(E) | C6: 0.1
B7: Baseline Log Odds | C7: =IFERROR(LN(C6/(1-C6)),"") -> -2.197224577
B8: Condition Combinations | C8: =IFERROR(PRODUCT(C29:I29),"") -> 864
C10: Conditions
A11: Each column represnts a unique "class" of attributes that affect the likelihood of a cybersecurity event. Make sure the classes are non-overlapping and non-redundant. | C11: Web | D11: Platform | E11: Pen Results | F11: Server/ Vendor | G11: Age | H11: Users | I11: Data
A12: Enter the possible attributes for each class. There is space for 4 attributes, but it is not neceesary to fill out all 4. Some classes may have 2 attributes, others may have 3 or 4, etc. These attributes should be orthogonal; i.e., they should not overlap with each other. They should also cover all possible states of a class. For example, whether or not an app is on the web is either a "yes" or a "no". There is no overlap between those attributes and they cover all possible states of being on the web. For a continuous variable, such as age, you should define bins of logical sizes. For example, the bins might be: "<1 yr", "1-5 yrs", or "5+ yrs" | B12: X1 | C12: Web | D12: MS | E12: Pos Pen | F12: Internal | G12: <1 Year | H12: Less than 5 | I12: PHI, PII, PCI, $
B13: X2 | C13: No Web | D13: Not MS | E13: Neg Pen | F13: External US | G13: 1 to 5 Years | H13: 5 to 200 | I13: Critical IP
B14: X3 | F14: Foreign | G14: 5+ Years | H14: 200 to 2000 | I14: No Critical Data
B15: X4 | H15: Over 2000
A17: Enter the conditional probability of a cybersecurity event given each of the attributes listed above. Another way to phrase this question is, "Given a random application, the baseline probability of a cybersecurity event in the next T years is X%. If you learn one thing about that application, whether or not it is externally accessible, how does that affect the probability of an event? | B17: P(E|X1) | C17: 0.15 | D17: 0.2 | E17: 0.3 | F17: 0.07 | G17: 0.15 | H17: 0.05 | I17: 0.32
B18: P(E|X2) | C18: 0.05 | D18: 0.09 | E18: 0.05 | F18: 0.09 | G18: 0.1 | H18: 0.08 | I18: 0.12
B19: P(E|X3) | F19: 0.13 | G19: 0.05 | H19: 0.15 | I19: 0.02
B20: P(E|X4) | H20: 0.36
A22: In this section, enter how frequently the attributes listed above occur. In other words, enter the percentage of applications that fall into that category. If this information is readily available, fill it out with actual values. Otherwise, provide calibrated estimates based on your knowledge of the environment. | B22: P(X1) | C22: 0.5 | D22: 0.09 | E22: 0.2 | F22: 0.4 | G22: 0.333 | H22: 0.15 | I22: 0.15
B23: P(X2) | C23: 0.5 | D23: 0.91 | E23: 0.8 | F23: 0.3 | G23: 0.333 | H23: 0.18 | I23: 0.35
B24: P(X3) | F24: 0.3 | G24: 0.333 | H24: 0.42 | I24: 0.5
B25: P(X4) | H25: 0.25
A27: The sum of the probabilities of each attribute should equal 100%. In other words, the attributes should reflect all possible states for a given class. | B27: Sum Check P(X) =100% | C27: =IF(SUM(C22:C25)=1, "Good", SUM(C22:C25)) -> Good | D27: =IF(SUM(D22:D25)=1, "Good", SUM(D22:D25)) -> Good | E27: Good | F27: Good | G27: 0.999 | H27: Good | I27: Good
A28: The weighted average of the conditional probabilities should be close to the baseline probability. If the weighted average is close to the baseline, this row will return "Good". Otherwise, you will see the actual weighted average and you need to adjust the conditional probabilities or frequency of attributes until this row reads "Good" all the way across. | B28: Test P( E) Computed=Stated | C28: =IF(AND(SUMPRODUCT(C17:C20,C22:C25)>initialP-0.0005,SUMPRODUCT(C17:C20,C22:C25)<initialP+0.0005), "Good", SUMPRODUCT(C17:C20,C22:C25)) -> Good | D28: Good | E28: Good | F28: 0.094 | G28: Good | H28: 0.1749 | I28: Good
A29: This simply counts the attributes for each class. | B29: Count of Possible States | C29: =IF(COUNTA(C12:C15)=0,"",COUNTA(C12:C15)) -> 2 | D29: =IF(COUNTA(D12:D15)=0,"",COUNTA(D12:D15)) -> 2 | E29: 2 | F29: 3 | G29: 3 | H29: 4 | I29: 3
A31: This is where the change in Log Odds Ratio is computed. You do not need to edit anything in this range of cells. | B31: Log Odds change|X1 | C31: =IF(C17="","",LN(C17/(1-C17))-$C$7) -> 0.4626235219 | D31: =IF(D17="","",LN(D17/(1-D17))-$C$7) -> 0.8109302162 | E31: 1.349926717 | F31: -0.3894647668 | G31: 0.4626235219 | H31: -0.7472144018 | I31: 1.443452775
B32: Log Odds change|X2 | C32: -0.7472144018 | D32: -0.1164103518 | E32: -0.7472144018 | F32: -0.1164103518 | G32: 0 | H32: -0.245122458 | I32: 0.2047944126
B33: Log Odds change|X3 | F33: 0.2962658161 | G33: -0.7472144018 | H33: 0.4626235219 | I33: -1.694595721
B34: Log Odds change|X4 | H34: 1.621860432
A36: Choose combinations of attributes to see how the conditional probability of an event changes (below). | B36: Condition State that Applies | C36: Web | D36: Not MS | E36: Pos Pen | F36: Internal | G36: 1 to 5 Years | H36: 5 to 200 | I36: Critical IP
A37: Each attribute contributes to the likelihood of a cybersecurity event. The change in Log Odds Ratio is referenced from the rows above, then the sum of the changes is added to the baseline log odds ratio. Finally, the updated log odds ratio is converted back to a probability. | B37: Attribute Contribution to Likelihood | C37: =IF(C36="","",INDEX(C31:C34, MATCH(C36, C12:C15, 0))) -> 0.4626235219 | D37: -0.1164103518 | E37: 1.349926717 | F37: -0.3894647668 | G37: 0 | H37: -0.245122458 | I37: 0.2047944126
B38: Total Adjustment | C38: =SUM(C37:I37) -> 1.266347075
B39: Conditional Probability | C39: =1/(1+1/EXP(C7+C38)) -> 0.2827467222
L40: No
